Workbook

Sheet Data summary
A1: RUN # 2 | B1: Rate classes | C1: Weather station used for normalization | H1: Test Year
A2: 1 | B2: Residential class | C2: Ottawa | H2: 2004
A3: 2 | B3: General service <50kW
A4: 3 | B4: General service >50kW
A5: 4 | B5: USL
A6: 5 | B6: Streetlights
A9: Monthly kWh by class (with actual weather) | C9: Jan | D9: Feb | E9: Mar | F9: Apr | G9: May | H9: Jun | I9: Jul | J9: Aug | K9: Sep | L9: Oct | M9: Nov | N9: Dec | O9: TOTAL
A10: 1 | B10: Residential class | C10: 2586895.416 | D10: 1904424.157 | E10: 1670756.127 | F10: 1287599.528 | G10: 861982.5924 | H10: 763286.9555 | I10: 949726.2958 | J10: 837050.1215 | K10: 804708.136 | L10: 1066389.303 | M10: 1493035.62 | N10: 2106379.287 | O10: 16332233.54
A11: 2 | B11: General service <50kW | C11: 758926.7661 | D11: 676858.9815 | E11: 523505.2948 | F11: 429761.5776 | G11: 407485.458 | H11: 402989.3702 | I11: 361402.0876 | J11: 384729.84 | K11: 342974.9929 | L11: 375483.5834 | M11: 432719.2156 | N11: 673970.713 | O11: 5770807.881
A12: 3 | B12: General service >50kW | C12: 709336.1078 | D12: 568510.2908 | E12: 547058.6544 | F12: 440304.4181 | G12: 386376.2465 | H12: 352222.8802 | I12: 300348.6244 | J12: 332136.1049 | K12: 347382.9592 | L12: 408118.7534 | M12: 501553.3155 | N12: 668371.1918 | O12: 5561719.547
A13: 4 | B13: USL | C13: 1662.43 | D13: 1662.43 | E13: 1662.43 | F13: 1662.43 | G13: 1662.43 | H13: 1662.43 | I13: 1662.43 | J13: 1662.43 | K13: 1662.43 | L13: 1662.43 | M13: 1662.43 | N13: 1662.43 | O13: 19949.16
A14: 5 | B14: Streetlights | C14: 36299.50447 | D14: 31255.32324 | E14: 29912.4515 | F14: 25366.68061 | G14: 23064.4083 | H14: 20778.15762 | I14: 22292.08265 | J14: 25080.73946 | K14: 27699.692 | L14: 32306.92826 | M14: 34407.43383 | N14: 37237.51936 | O14: 345700.9213
A17: Monthly kWh by class (with normalized weather) | C17: Jan | D17: Feb | E17: Mar | F17: Apr | G17: May | H17: Jun | I17: Jul | J17: Aug | K17: Sep | L17: Oct | M17: Nov | N17: Dec | O17: TOTAL
A18: 1 | B18: Residential class | C18: 2326517.091 | D18: 1929678.515 | E18: 1794442.089 | F18: 1260140.365 | G18: 877029.0177 | H18: 793657.7708 | I18: 957179.0197 | J18: 850289.4566 | K18: 847747.6669 | L18: 1111002.162 | M18: 1531998.109 | N18: 1985677.508 | O18: 16265358.77
A19: 2 | B19: General service <50kW | C19: 701351.6998 | D19: 682443.2458 | E19: 550854.835 | F19: 423689.7852 | G19: 411625.9814 | H19: 416283.4441 | I19: 364664.3334 | J19: 390525.0317 | K19: 358497.8541 | L19: 385348.4151 | M19: 441334.6327 | N19: 647281.0377 | O19: 5773900.296
A20: 3 | B20: General service >50kW | C20: 639545.7155 | D20: 575279.3319 | E20: 580210.768 | F20: 432944.4133 | G20: 391209.3378 | H20: 366834.071 | I20: 303934.0788 | J20: 338505.4581 | K20: 364826.647 | L20: 420076.542 | M20: 511996.6094 | N20: 636018.9423 | O20: 5561381.915
A21: 4 | B21: USL | C21: 1662.43 | D21: 1662.43 | E21: 1662.43 | F21: 1662.43 | G21: 1662.43 | H21: 1662.43 | I21: 1662.43 | J21: 1662.43 | K21: 1662.43 | L21: 1662.43 | M21: 1662.43 | N21: 1662.43 | O21: 19949.16
A22: 5 | B22: Streetlights | C22: 36299.50447 | D22: 31255.32324 | E22: 29912.4515 | F22: 25366.68061 | G22: 23064.4083 | H22: 20778.15762 | I22: 22292.08265 | J22: 25080.73946 | K22: 27699.692 | L22: 32306.92826 | M22: 34407.43383 | N22: 37237.51936 | O22: 345700.9213
A25: Residential class information | C25: Equipment saturation
B26: Electric space heating | C26: 0.5993
B27: Electric water heating | C27: 0.8174
B28: Air conditioning | C28: 0.19396128
B29: Baseload | C29: 1
A32: General service >50kW | C32: 2004 kWh (Actual) | D32: 2004 kWh (Weather Corrected)
B33: Weather sensitive load | C33: 5561719.547 | D33: 5561381.915
B34: Non-weather sensitive load | C34: 0 | D34: 0
B35: TOTAL | C35: 5561719.547 | D35: 5561381.915

Sheet Hourly load shapes by class
A1: ALL UNITS IN GWh | E1: 2004 Load Shape | L1: 2025 Load Shape
A2: Year | B2: Month | C2: Day | D2: Hour (EST) | E2: Residential | F2: GS<50 kW | G2: GS>50 kW | H2: USL | I2: Street Lighting | J2: TOTAL LDC sales | L2: =E2 -> Residential | M2: GS<50 kW | N2: GS>50 kW | O2: USL | P2: Street Lighting | Q2: TOTAL LDC sales | T2: Residential | U2: GS<50 kW | V2: GS>50 kW | W2: USL | X2: Street Lighting
A3: 2004 | B3: 1 | C3: 1 | D3: 1 | E3: 0.002547250505 | F3: 0.0009900599908 | G3: 0.0007905495626 | H3: 2.234448925e-06 | I3: 8.0172213e-05 | J3: =SUM(E3:I3) -> 0.00441026672 | L3: =E3*T$5 -> 0.001871234757 | M3: =F3*U$5 -> 0.0006328615581 | N3: =G3*V$5 -> 0.0005138737837 | O3: =H3*W$5 -> 1.043458781e-06 | P3: =I3*X$5 -> 3.536592156e-05 | Q3: =SUM(L3:P3) -> 0.003054379479 | S3: 2004 | T3: 16265358.77 | U3: 5773900.296 | V3: 5561381.915 | W3: 19949.16 | X3: 345700.9213
A4: 2004 | B4: 1 | C4: 1 | D4: 2 | E4: 0.002415577321 | F4: 0.001005117197 | G4: 0.000793976259 | H4: 2.234448925e-06 | I4: 8.0172213e-05 | J4: =SUM(E4:I4) -> 0.00429707744 | L4: 0.001774506368 | M4: 0.0006424863558 | N4: =G4*V$5 -> 0.0005161012082 | O4: 1.043458781e-06 | P4: 3.536592156e-05 | Q4: 0.002969503312 | S4: 2025 Forecast | T4: 11948689.23 | U4: 3690765.783 | V4: 3615014.798 | W4: 9316 | X4: 152497.121
A5: 2004 | B5: 1 | C5: 1 | D5: 3 | E5: 0.002413088661 | F5: 0.0009603931898 | G5: 0.0007675745814 | H5: 2.234448925e-06 | I5: 8.0172213e-05 | J5: 0.004223463095 | L5: 0.001772678174 | M5: 0.0006138980831 | N5: 0.0004989395644 | O5: 1.043458781e-06 | P5: 3.536592156e-05 | Q5: 0.002921925202 | S5: Scaling Factor | T5: =T4/T3 -> 0.7346096323 | U5: =U4/U3 -> 0.6392153647 | V5: 0.6500209576 | W5: 0.4669870812 | X5: 0.4411244275
A6: 2004 | B6: 1 | C6: 1 | D6: 4 | E6: 0.002428648959 | F6: 0.0009137558666 | G6: 0.0007429401681 | H6: 2.234448925e-06 | I6: 8.0172213e-05 | J6: 0.004167751655 | L6: 0.001784108918 | M6: 0.0005840867895 | N6: 0.0004829266795 | O6: 1.043458781e-06 | P6: 3.536592156e-05 | Q6: 0.002887531768
A7: 2004 | B7: 1 | C7: 1 | D7: 5 | E7: 0.002548875625 | F7: 0.0008959576648 | G7: 0.0007279067856 | H7: 2.234448925e-06 | I7: 8.0172213e-05 | J7: 0.004255146737 | L7: 0.001872428586 | M7: 0.0005727099054 | N7: 0.0004731546658 | O7: 1.043458781e-06 | P7: 3.536592156e-05 | Q7: 0.002954702537
A8: 2004 | B8: 1 | C8: 1 | D8: 6 | E8: 0.002654885587 | F8: 0.000878068431 | G8: 0.0007315387827 | H8: 2.234448925e-06 | I8: 8.0172213e-05 | J8: 0.004346899463 | L8: 0.001950304525 | M8: 0.0005612748323 | N8: 0.00047551554 | O8: 1.043458781e-06 | P8: 3.536592156e-05 | Q8: 0.003023504278
A9: 2004 | B9: 1 | C9: 1 | D9: 7 | E9: 0.0028080215 | F9: 0.0008704638382 | G9: 0.0007566750083 | H9: 2.234448925e-06 | I9: 8.0172213e-05 | J9: 0.004517567008 | L9: 0.002062799641 | M9: 0.0005564138597 | N9: 0.0004918546135 | O9: 1.043458781e-06 | P9: 3.536592156e-05 | Q9: 0.003147477495
A10: 2004 | B10: 1 | C10: 1 | D10: 8 | E10: 0.003010535761 | F10: 0.000968310894 | G10: 0.0008408361015 | H10: 2.234448925e-06 | I10: 7.349760905e-05 | J10: 0.004895414814 | L10: 0.002211568568 | M10: 0.0006189592012 | N10: 0.0005465610878 | O10: 1.043458781e-06 | P10: 3.242159072e-05 | Q10: 0.003410553907
A11: 2004 | B11: 1 | C11: 1 | D11: 9 | E11: 0.003191943541 | F11: 0.001014547745 | G11: 0.0008820909031 | H11: 2.234448925e-06 | I11: 0 | J11: 0.005090816638 | L11: 0.002344832471 | M11: 0.0006485145066 | N11: 0.0005733775735 | O11: 1.043458781e-06 | P11: 0 | Q11: 0.00356776801
A12: 2004 | B12: 1 | C12: 1 | D12: 10 | E12: 0.003242226552 | F12: 0.001047147511 | G12: 0.0009060374352 | H12: 2.234448925e-06 | I12: 0 | J12: 0.005197645947 | L12: 0.002381770855 | M12: 0.000669352778 | N12: 0.0005889433213 | O12: 1.043458781e-06 | P12: 0 | Q12: 0.003641110413
A13: 2004 | B13: 1 | C13: 1 | D13: 11 | E13: 0.003300829946 | F13: 0.001026042017 | G13: 0.0008996342363 | H13: 2.234448925e-06 | I13: 0 | J13: 0.005228740648 | L13: 0.002424821473 | M13: 0.000655861822 | N13: 0.0005847811078 | O13: 1.043458781e-06 | P13: 0 | Q13: 0.003666507861
A14: 2004 | B14: 1 | C14: 1 | D14: 12 | E14: 0.003149967702 | F14: 0.001068113343 | G14: 0.0009131387789 | H14: 2.234448925e-06 | I14: 0 | J14: 0.005133454273 | L14: 0.002313996616 | M14: 0.0006827544599 | N14: 0.0005935593435 | O14: 1.043458781e-06 | P14: 0 | Q14: 0.003591353878
A15: 2004 | B15: 1 | C15: 1 | D15: 13 | E15: 0.002994586492 | F15: 0.001105637327 | G15: 0.0009170998194 | H15: 2.234448925e-06 | I15: 0 | J15: 0.005019558087 | L15: 0.002199852082 | M15: 0.0007067403671 | N15: 0.0005961341028 | O15: 1.043458781e-06 | P15: 0 | Q15: 0.003503770011
A16: 2004 | B16: 1 | C16: 1 | D16: 14 | E16: 0.002809960632 | F16: 0.001103363459 | G16: 0.0009226134848 | H16: 2.234448925e-06 | I16: 0 | J16: 0.004838172025 | L16: 0.002064224147 | M16: 0.0007052868757 | N16: 0.0005997181009 | O16: 1.043458781e-06 | P16: 0 | Q16: 0.003370272582
A17: 2004 | B17: 1 | C17: 1 | D17: 15 | E17: 0.002818229264 | F17: 0.0009731071061 | G17: 0.0008769963325 | H17: 2.234448925e-06 | I17: 0 | J17: 0.004670567151 | L17: 0.002070298363 | M17: 0.0006220250137 | N17: 0.0005700659958 | O17: 1.043458781e-06 | P17: 0 | Q17: 0.003263432831
A18: 2004 | B18: 1 | C18: 1 | D18: 16 | E18: 0.002810367228 | F18: 0.00104761418 | G18: 0.0008932703192 | H18: 2.234448925e-06 | I18: 0 | J18: 0.004753486176 | L18: 0.002064522836 | M18: 0.0006696510799 | N18: 0.0005806444283 | O18: 1.043458781e-06 | P18: 0 | Q18: 0.003315861803
A19: 2004 | B19: 1 | C19: 1 | D19: 17 | E19: 0.003194865624 | F19: 0.001228642185 | G19: 0.0009727195722 | H19: 2.234448925e-06 | I19: 4.00861065e-06 | J19: 0.005402470441 | L19: 0.002346979061 | M19: 0.0007853669625 | N19: 0.0006322881078 | O19: 1.043458781e-06 | P19: 1.768296078e-06 | Q19: 0.003767445887
A20: 2004 | B20: 1 | C20: 1 | D20: 18 | E20: 0.003653368046 | F20: 0.001073427235 | G20: 0.000907278041 | H20: 2.234448925e-06 | I20: 8.0172213e-05 | J20: 0.005716479983 | L20: 0.002683799357 | M20: 0.0006861511815 | N20: 0.000589749741 | O20: 1.043458781e-06 | P20: 3.536592156e-05 | Q20: 0.003996109659
A21: 2004 | B21: 1 | C21: 1 | D21: 19 | E21: 0.003613869629 | F21: 0.001065319683 | G21: 0.0008978771753 | H21: 2.234448925e-06 | I21: 8.0172213e-05 | J21: 0.005659473149 | L21: 0.002654783439 | M21: 0.0006809687094 | N21: 0.0005836389813 | O21: 1.043458781e-06 | P21: 3.536592156e-05 | Q21: 0.00395580051
A22: 2004 | B22: 1 | C22: 1 | D22: 20 | E22: 0.003528876094 | F22: 0.001086092709 | G22: 0.0008953147113 | H22: 2.234448925e-06 | I22: 8.0172213e-05 | J22: 0.005592690177 | L22: 0.00259234637 | M22: 0.0006942471472 | N22: 0.000581973326 | O22: 1.043458781e-06 | P22: 3.536592156e-05 | Q22: 0.003904976224
A23: 2004 | B23: 1 | C23: 1 | D23: 21 | E23: 0.003474896072 | F23: 0.001071311141 | G23: 0.0008765632852 | H23: 2.234448925e-06 | I23: 8.0172213e-05 | J23: 0.005505177159 | L23: 0.002552692126 | M23: 0.0006847985414 | N23: 0.000569784506 | O23: 1.043458781e-06 | P23: 3.536592156e-05 | Q23: 0.003843684553
A24: 2004 | B24: 1 | C24: 1 | D24: 22 | E24: 0.003290619299 | F24: 0.001080883209 | G24: 0.0008690583566 | H24: 2.234448925e-06 | I24: 8.0172213e-05 | J24: 0.005322967527 | L24: 0.002417320633 | M24: 0.0006909171545 | N24: 0.0005649061452 | O24: 1.043458781e-06 | P24: 3.536592156e-05 | Q24: 0.003709553313
A25: 2004 | B25: 1 | C25: 1 | D25: 23 | E25: 0.003015509199 | F25: 0.001021767328 | G25: 0.0008309716629 | H25: 2.234448925e-06 | I25: 8.0172213e-05 | J25: 0.004950654852 | L25: 0.002215222104 | M25: 0.0006531293752 | N25: 0.000540148996 | O25: 1.043458781e-06 | P25: 3.536592156e-05 | Q25: 0.003444909856
A26: 2004 | B26: 1 | C26: 1 | D26: 24 | E26: 0.00261675812 | F26: 0.001062111455 | G26: 0.0008257829479 | H26: 2.234448925e-06 | I26: 8.0172213e-05 | J26: 0.004587059185 | L26: 0.001922295721 | M26: 0.0006789179608 | N26: 0.0005367762226 | O26: 1.043458781e-06 | P26: 3.536592156e-05 | Q26: 0.003174399284
A27: 2004 | B27: 1 | C27: 2 | D27: 1 | E27: 0.002460054773 | F27: 0.0008809526052 | G27: 0.000758052896 | H27: 2.234448925e-06 | I27: 8.0172213e-05 | J27: 0.004181466936 | L27: 0.001807179932 | M27: 0.0005631184408 | N27: 0.0004927502693 | O27: 1.043458781e-06 | P27: 3.536592156e-05 | Q27: 0.002899458022
A28: 2004 | B28: 1 | C28: 2 | D28: 2 | E28: 0.002307467436 | F28: 0.0009159958789 | G28: 0.0007682798842 | H28: 2.234448925e-06 | I28: 8.0172213e-05 | J28: 0.004074149861 | L28: 0.001695087804 | M28: 0.0005855186398 | N28: 0.000499398026 | O28: 1.043458781e-06 | P28: 3.536592156e-05 | Q28: 0.00281641385
A29: 2004 | B29: 1 | C29: 2 | D29: 3 | E29: 0.002329074527 | F29: 0.000856828488 | G29: 0.0007360449303 | H29: 2.234448925e-06 | I29: 8.0172213e-05 | J29: 0.004004354608 | L29: 0.001710960582 | M29: 0.0005476979344 | N29: 0.0004784446304 | O29: 1.043458781e-06 | P29: 3.536592156e-05 | Q29: 0.002773512527
A30: 2004 | B30: 1 | C30: 2 | D30: 4 | E30: 0.002361765038 | F30: 0.0008017822605 | G30: 0.0007055796881 | H30: 2.234448925e-06 | I30: 8.0172213e-05 | J30: 0.003951533649 | L30: 0.001734975346 | M30: 0.00051251154 | N30: 0.0004586415845 | O30: 1.043458781e-06 | P30: 3.536592156e-05 | Q30: 0.002742537851
A31: 2004 | B31: 1 | C31: 2 | D31: 5 | E31: 0.002471078128 | F31: 0.0007846682848 | G31: 0.0006962414768 | H31: 2.234448925e-06 | I31: 8.0172213e-05 | J31: 0.004034394552 | L31: 0.001815277795 | M31: 0.0005015720238 | N31: 0.0004525715514 | O31: 1.043458781e-06 | P31: 3.536592156e-05 | Q31: 0.002805830751
A32: 2004 | B32: 1 | C32: 2 | D32: 6 | E32: 0.002609566603 | F32: 0.0007471902046 | G32: 0.0006822240576 | H32: 2.234448925e-06 | I32: 8.0172213e-05 | J32: 0.004121387527 | L32: 0.001917012762 | M32: 0.0004776154591 | N32: 0.0004434599352 | O32: 1.043458781e-06 | P32: 3.536592156e-05 | Q32: 0.002874497537
A33: 2004 | B33: 1 | C33: 2 | D33: 7 | E33: 0.002746539067 | F33: 0.0007052868816 | G33: 0.0007489680795 | H33: 2.234448925e-06 | I33: 8.0172213e-05 | J33: 0.00428320069 | L33: 0.002017634054 | M33: 0.0004508302112 | N33: 0.0004868449482 | O33: 1.043458781e-06 | P33: 3.536592156e-05 | Q33: 0.002991718594
A34: 2004 | B34: 1 | C34: 2 | D34: 8 | E34: 0.002909251756 | F34: 0.000782223663 | G34: 0.0008742388896 | H34: 2.234448925e-06 | I34: 7.349760905e-05 | J34: 0.004641446366 | L34: 0.002137164363 | M34: 0.000500009384 | N34: 0.0005682736002 | O34: 1.043458781e-06 | P34: 3.242159072e-05 | Q34: 0.003238912396
A35: 2004 | B35: 1 | C35: 2 | D35: 9 | E35: 0.003009781612 | F35: 0.0008595907803 | G35: 0.0009551040708 | H35: 2.234448925e-06 | I35: 0 | J35: 0.004826710912 | L35: 0.002211014563 | M35: 0.0005494636341 | N35: 0.0006208376627 | O35: 1.043458781e-06 | P35: 0 | Q35: 0.003382359319
A36: 2004 | B36: 1 | C36: 2 | D36: 10 | E36: 0.002987757982 | F36: 0.0009360677139 | G36: 0.00100193806 | H36: 2.234448925e-06 | I36: 0 | J36: 0.004927998205 | L36: 0.002194835793 | M36: 0.0005983488651 | N36: 0.0006512807375 | O36: 1.043458781e-06 | P36: 0 | Q36: 0.003445508854
A37: 2004 | B37: 1 | C37: 2 | D37: 11 | E37: 0.003134455594 | F37: 0.0008521415725 | G37: 0.0009686481489 | H37: 2.234448925e-06 | I37: 0 | J37: 0.004957479764 | L37: 0.002302601271 | M37: 0.000544701986 | N37: 0.0006296415973 | O37: 1.043458781e-06 | P37: 0 | Q37: 0.003477988313
A38: 2004 | B38: 1 | C38: 2 | D38: 12 | E38: 0.00292211697 | F38: 0.0009404527834 | G38: 0.001002332329 | H38: 2.234448925e-06 | I38: 0 | J38: 0.004867136531 | L38: 0.002146615273 | M38: 0.0006011518689 | N38: 0.0006515370206 | O38: 1.043458781e-06 | P38: 0 | Q38: 0.003400347621
A39: 2004 | B39: 1 | C39: 2 | D39: 13 | E39: 0.002755194616 | F39: 0.0009917010743 | G39: 0.001010019457 | H39: 2.234448925e-06 | I39: 0 | J39: 0.004759149597 | L39: 0.002023992504 | M39: 0.0006339105639 | N39: 0.0006565338145 | O39: 1.043458781e-06 | P39: 0 | Q39: 0.003315480341
A40: 2004 | B40: 1 | C40: 2 | D40: 14 | E40: 0.002601600442 | F40: 0.000979087845 | G40: 0.001004250547 | H40: 2.234448925e-06 | I40: 0 | J40: 0.004587173283 | L40: 0.001911160744 | M40: 0.0006258479939 | N40: 0.000652783902 | O40: 1.043458781e-06 | P40: 0 | Q40: 0.003190836099
A41: 2004 | B41: 1 | C41: 2 | D41: 15 | E41: 0.002593645117 | F41: 0.000874283601 | G41: 0.0009581007222 | H41: 2.234448925e-06 | I41: 0 | J41: 0.004428263889 | L41: 0.001905316686 | M41: 0.0005588555108 | N41: 0.0006227855489 | O41: 1.043458781e-06 | P41: 0 | Q41: 0.003088001204
A42: 2004 | B42: 1 | C42: 2 | D42: 16 | E42: 0.002563561482 | F42: 0.0009687376182 | G42: 0.0009723472472 | H42: 2.234448925e-06 | I42: 0 | J42: 0.004506880796 | L42: 0.001883216957 | M42: 0.0006192319699 | N42: 0.0006320460888 | O42: 1.043458781e-06 | P42: 0 | Q42: 0.003135538475
A43: 2004 | B43: 1 | C43: 2 | D43: 17 | E43: 0.002938280111 | F43: 0.001146334102 | G43: 0.001032675685 | H43: 2.234448925e-06 | I43: 2.672407073e-06 | J43: 0.005122196753 | L43: 0.002158488872 | M43: 0.0007327543709 | N43: 0.0006712608374 | O43: 1.043458781e-06 | P43: 1.17886404e-06 | Q43: 0.003564726403
A44: 2004 | B44: 1 | C44: 2 | D44: 18 | E44: 0.003431426787 | F44: 0.0009681399403 | G44: 0.0009379422961 | H44: 2.234448925e-06 | I44: 8.0172213e-05 | J44: 0.005419915686 | L44: 0.00252075917 | M44: 0.000618849925 | N44: 0.0006096821495 | O44: 1.043458781e-06 | P44: 3.536592156e-05 | Q44: 0.003785700625
A45: 2004 | B45: 1 | C45: 2 | D45: 19 | E45: 0.003399236935 | F45: 0.0009677472053 | G45: 0.0009164756792 | H45: 2.234448925e-06 | I45: 8.0172213e-05 | J45: 0.005365866481 | L45: 0.002497112195 | M45: 0.0006185988828 | N45: 0.0005957283986 | O45: 1.043458781e-06 | P45: 3.536592156e-05 | Q45: 0.003747848856
A46: 2004 | B46: 1 | C46: 2 | D46: 20 | E46: 0.003363286874 | F46: 0.0009589521826 | G46: 0.0008979021466 | H46: 2.234448925e-06 | I46: 8.0172213e-05 | J46: 0.005302547865 | L46: 0.002470702934 | M46: 0.0006129769691 | N46: 0.0005836552132 | O46: 1.043458781e-06 | P46: 3.536592156e-05 | Q46: 0.003703744496
A47: 2004 | B47: 1 | C47: 2 | D47: 21 | E47: 0.003325941622 | F47: 0.0009429609458 | G47: 0.0008682657786 | H47: 2.234448925e-06 | I47: 8.0172213e-05 | J47: 0.005219575008 | L47: 0.002443268752 | M47: 0.0006027551249 | N47: 0.0005643909528 | O47: 1.043458781e-06 | P47: 3.536592156e-05 | Q47: 0.00364682421
A48: 2004 | B48: 1 | C48: 2 | D48: 22 | E48: 0.003118970849 | F48: 0.0009808636346 | G48: 0.0008645770334 | H48: 2.234448925e-06 | I48: 8.0172213e-05 | J48: 0.005046818179 | L48: 0.002291226028 | M48: 0.0006269831059 | N48: 0.0005619931912 | O48: 1.043458781e-06 | P48: 3.536592156e-05 | Q48: 0.003516611706
A49: 2004 | B49: 1 | C49: 2 | D49: 23 | E49: 0.002924204183 | F49: 0.0008917707147 | G49: 0.0007954393336 | H49: 2.234448925e-06 | I49: 8.0172213e-05 | J49: 0.004693820893 | L49: 0.00214814856 | M49: 0.0005700335426 | N49: 0.0005170522373 | O49: 1.043458781e-06 | P49: 3.536592156e-05 | Q49: 0.00327164372
A50: 2004 | B50: 1 | C50: 2 | D50: 24 | E50: 0.002542549737 | F50: 0.0009373391742 | G50: 0.0007867921769 | H50: 2.234448925e-06 | I50: 8.0172213e-05 | J50: 0.00434908775 | L50: 0.001867781528 | M50: 0.0005991616021 | N50: 0.0005114314042 | O50: 1.043458781e-06 | P50: 3.536592156e-05 | Q50: 0.003014783914
A51: 2004 | B51: 1 | C51: 3 | D51: 1 | E51: 0.001893322084 | F51: 0.0009726225292 | G51: 0.0007434958254 | H51: 2.234448925e-06 | I51: 8.0172213e-05 | J51: 0.003691847101 | L51: 0.00139085264 | M51: 0.0006217152647 | N51: 0.0004832878684 | O51: 1.043458781e-06 | P51: 3.536592156e-05 | Q51: 0.002532265154
A52: 2004 | B52: 1 | C52: 3 | D52: 2 | E52: 0.001789860132 | F52: 0.001008957776 | G52: 0.0007439760587 | H52: 2.234448925e-06 | I52: 8.0172213e-05 | J52: 0.003625200629 | L52: 0.001314848493 | M52: 0.0006449413128 | N52: 0.0004836000301 | O52: 1.043458781e-06 | P52: 3.536592156e-05 | Q52: 0.002479799217
A53: 2004 | B53: 1 | C53: 3 | D53: 3 | E53: 0.001804814371 | F53: 0.0009443152293 | G53: 0.0007109636061 | H53: 2.234448925e-06 | I53: 8.0172213e-05 | J53: 0.003542499869 | L53: 0.001325834022 | M53: 0.0006036208037 | N53: 0.000462141244 | O53: 1.043458781e-06 | P53: 3.536592156e-05 | Q53: 0.00242800545
A54: 2004 | B54: 1 | C54: 3 | D54: 4 | E54: 0.001855921971 | F54: 0.0009505231212 | G54: 0.0007082305383 | H54: 2.234448925e-06 | I54: 8.0172213e-05 | J54: 0.003597082292 | L54: 0.001363378156 | M54: 0.0006075889835 | N54: 0.0004603646927 | O54: 1.043458781e-06 | P54: 3.536592156e-05 | Q54: 0.002467741213
A55: 2004 | B55: 1 | C55: 3 | D55: 5 | E55: 0.001934118208 | F55: 0.0009373823003 | G55: 0.0007022331511 | H55: 2.234448925e-06 | I55: 8.0172213e-05 | J55: 0.003656140322 | L55: 0.001420821866 | M55: 0.0005991891689 | N55: 0.0004564662653 | O55: 1.043458781e-06 | P55: 3.536592156e-05 | Q55: 0.00251288668
A56: 2004 | B56: 1 | C56: 3 | D56: 6 | E56: 0.001994646868 | F56: 0.0009883725276 | G56: 0.000731888654 | H56: 2.234448925e-06 | I56: 8.0172213e-05 | J56: 0.003797314712 | L56: 0.001465286803 | M56: 0.0006317829057 | N56: 0.0004757429637 | O56: 1.043458781e-06 | P56: 3.536592156e-05 | Q56: 0.002609222052
A57: 2004 | B57: 1 | C57: 3 | D57: 7 | E57: 0.002309173633 | F57: 0.0009264649237 | G57: 0.0007170579592 | H57: 2.234448925e-06 | I57: 8.0172213e-05 | J57: 0.004035103178 | L57: 0.001696341194 | M57: 0.000592210614 | N57: 0.0004661027013 | O57: 1.043458781e-06 | P57: 3.536592156e-05 | Q57: 0.002791063889
A58: 2004 | B58: 1 | C58: 3 | D58: 8 | E58: 0.002431882982 | F58: 0.0009381481898 | G58: 0.0007713782082 | H58: 2.234448925e-06 | I58: 7.349760905e-05 | J58: 0.004217141438 | L58: 0.001786484663 | M58: 0.0005996787373 | N58: 0.0005014120015 | O58: 1.043458781e-06 | P58: 3.242159072e-05 | Q58: 0.002921040452
A59: 2004 | B59: 1 | C59: 3 | D59: 9 | E59: 0.002641084282 | F59: 0.0009677793906 | G59: 0.0008144483807 | H59: 2.234448925e-06 | I59: 0 | J59: 0.004425546502 | L59: 0.001940165953 | M59: 0.0006186194561 | N59: 0.0005294085163 | O59: 1.043458781e-06 | P59: 0 | Q59: 0.003089237385
A60: 2004 | B60: 1 | C60: 3 | D60: 10 | E60: 0.002742976311 | F60: 0.0009297793663 | G60: 0.0008011498861 | H60: 2.234448925e-06 | I60: 0 | J60: 0.004476140013 | L60: 0.002015016819 | M60: 0.0005943292567 | N60: 0.0005207642162 | O60: 1.043458781e-06 | P60: 0 | Q60: 0.003131153751
A61: 2004 | B61: 1 | C61: 3 | D61: 11 | E61: 0.002797103407 | F61: 0.0007944106036 | G61: 0.0007464707172 | H61: 2.234448925e-06 | I61: 0 | J61: 0.004340219177 | L61: 0.002054779105 | M61: 0.0005077994637 | N61: 0.0004852216104 | O61: 1.043458781e-06 | P61: 0 | Q61: 0.003048843638
A62: 2004 | B62: 1 | C62: 3 | D62: 12 | E62: 0.002543068884 | F62: 0.0009131215528 | G62: 0.0007909211123 | H62: 2.234448925e-06 | I62: 0 | J62: 0.004249345998 | L62: 0.001868162898 | M62: 0.0005836813263 | N62: 0.0005141152988 | O62: 1.043458781e-06 | P62: 0 | Q62: 0.002967002982
A63: 2004 | B63: 1 | C63: 3 | D63: 13 | E63: 0.002427011308 | F63: 0.0008926582717 | G63: 0.00075620354 | H63: 2.234448925e-06 | I63: 0 | J63: 0.004078107569 | L63: 0.001782905885 | M63: 0.0005706008826 | N63: 0.0004915481492 | O63: 1.043458781e-06 | P63: 0 | Q63: 0.002846098375
A64: 2004 | B64: 1 | C64: 3 | D64: 14 | E64: 0.002136848329 | F64: 0.0009992131203 | G64: 0.0008146907214 | H64: 2.234448925e-06 | I64: 0 | J64: 0.00395298662 | L64: 0.001569749365 | M64: 0.0006387123791 | N64: 0.0005295660429 | O64: 1.043458781e-06 | P64: 0 | Q64: 0.002739071246
A65: 2004 | B65: 1 | C65: 3 | D65: 15 | E65: 0.002067357645 | F65: 0.0009870723465 | G65: 0.0008065188243 | H65: 2.234448925e-06 | I65: 0 | J65: 0.003863183264 | L65: 0.001518700839 | M65: 0.0006309518099 | N65: 0.0005242541385 | O65: 1.043458781e-06 | P65: 0 | Q65: 0.002674950246
A66: 2004 | B66: 1 | C66: 3 | D66: 16 | E66: 0.002200522733 | F66: 0.0009360194568 | G66: 0.0007764591162 | H66: 2.234448925e-06 | I66: 0 | J66: 0.003915235755 | L66: 0.001616525196 | M66: 0.0005983180184 | N66: 0.0005047146982 | O66: 1.043458781e-06 | P66: 0 | Q66: 0.002720601371
A67: 2004 | B67: 1 | C67: 3 | D67: 17 | E67: 0.002446038412 | F67: 0.0009477114818 | G67: 0.0007839450427 | H67: 2.234448925e-06 | I67: 2.672407073e-06 | J67: 0.004182601792 | L67: =E67*T$5 -> 0.001796883378 | M67: =F67*U$5 -> 0.0006057917404 | N67: =G67*V$5 -> 0.0005095807073 | O67: =H67*W$5 -> 1.043458781e-06 | P67: =I67*X$5 -> 1.17886404e-06 | Q67: =SUM(L67:P67) -> 0.002914478149
A68: 2004 | B68: 1 | C68: 3 | D68: 18 | E68: 0.002771219137 | F68: 0.0009571813917 | G68: 0.000779653912 | H68: 2.234448925e-06 | I68: 8.0172213e-05 | J68: =SUM(E68:I68) -> 0.004590461103 | L68: 0.002035764271 | M68: 0.0006118450523 | N68: 0.0005067913825 | O68: 1.043458781e-06 | P68: 3.536592156e-05 | Q68: 0.003190810087
A69: 2004 | B69: 1 | C69: 3 | D69: 19 | E69: 0.002775668983 | F69: 0.0009081336996 | G69: 0.0007630534341 | H69: 2.234448925e-06 | I69: 8.0172213e-05 | J69: 0.004529262778 | L69: 0.002039033171 | M69: 0.0005804930139 | N69: 0.0004960007239 | O69: 1.043458781e-06 | P69: 3.536592156e-05 | Q69: 0.003151936289
A70: 2004 | B70: 1 | C70: 3 | D70: 20 | E70: 0.002735172656 | F70: 0.0008360593022 | G70: 0.0007205364516 | H70: 2.234448925e-06 | I70: 8.0172213e-05 | J70: 0.004374175072 | L70: 0.002009284179 | M70: 0.0005344219518 | N70: 0.0004683637943 | O70: 1.043458781e-06 | P70: 3.536592156e-05 | Q70: 0.003048479306
A71: 2004 | B71: 1 | C71: 3 | D71: 21 | E71: 0.002540633625 | F71: 0.0009270745673 | G71: 0.000740386917 | H71: 2.234448925e-06 | I71: 8.0172213e-05 | J71: 0.004290501771 | L71: 0.001866373933 | M71: 0.0005926003076 | N71: 0.0004812670128 | O71: 1.043458781e-06 | P71: 3.536592156e-05 | Q71: 0.002976650634
A72: 2004 | B72: 1 | C72: 3 | D72: 22 | E72: 0.002458497141 | F72: 0.0008791088936 | G72: 0.000712968973 | H72: 2.234448925e-06 | I72: 8.0172213e-05 | J72: 0.004132981669 | L72: 0.001806035681 | M72: 0.000561939912 | N72: 0.0004634447745 | O72: 1.043458781e-06 | P72: 3.536592156e-05 | Q72: 0.002867829748
A73: 2004 | B73: 1 | C73: 3 | D73: 23 | E73: 0.002409594586 | F73: 0.0008256372813 | G73: 0.0006728062054 | H73: 2.234448925e-06 | I73: 8.0172213e-05 | J73: 0.003990444734 | L73: 0.001770111393 | M73: 0.0005277600358 | N73: 0.0004373381339 | O73: 1.043458781e-06 | P73: 3.536592156e-05 | Q73: 0.002771618943
A74: 2004 | B74: 1 | C74: 3 | D74: 24 | E74: 0.001908120288 | F74: 0.001016669432 | G74: 0.000733687487 | H74: 2.234448925e-06 | I74: 8.0172213e-05 | J74: 0.003740883869 | L74: 0.001401723543 | M74: 0.0006498707215 | N74: 0.0004769122428 | O74: 1.043458781e-06 | P74: 3.536592156e-05 | Q74: 0.002564915888
A75: 2004 | B75: 1 | C75: 4 | D75: 1 | E75: 0.001543565156 | F75: 0.0009396777841 | G75: 0.000686546937 | H75: 2.234448925e-06 | I75: 8.0172213e-05 | J75: 0.003252196539 | L75: 0.001133917832 | M75: 0.0006006564774 | N75: 0.0004462698974 | O75: 1.043458781e-06 | P75: 3.536592156e-05 | Q75: 0.002217253587
A76: 2004 | B76: 1 | C76: 4 | D76: 2 | E76: 0.001521717511 | F76: 0.0008904116682 | G76: 0.0006679348185 | H76: 2.234448925e-06 | I76: 8.0172213e-05 | J76: 0.00316247066 | L76: 0.001117868341 | M76: 0.0005691648192 | N76: 0.0004341716304 | O76: 1.043458781e-06 | P76: 3.536592156e-05 | Q76: 0.002157614171
A77: 2004 | B77: 1 | C77: 4 | D77: 3 | E77: 0.001428613292 | F77: 0.0009104136206 | G77: 0.0006675777207 | H77: 2.234448925e-06 | I77: 8.0172213e-05 | J77: 0.003089011295 | L77: 0.001049473085 | M77: 0.0005819503745 | N77: 0.0004339395092 | O77: 1.043458781e-06 | P77: 3.536592156e-05 | Q77: 0.002101772349
A78: 2004 | B78: 1 | C78: 4 | D78: 4 | E78: 0.001498984459 | F78: 0.0008442643477 | G78: 0.0006370525318 | H78: 2.234448925e-06 | I78: 8.0172213e-05 | J78: 0.003062708001 | L78: 0.001101168422 | M78: 0.0005396667429 | N78: 0.0004140974968 | O78: 1.043458781e-06 | P78: 3.536592156e-05 | Q78: 0.002091342042
A79: 2004 | B79: 1 | C79: 4 | D79: 5 | E79: 0.001569888616 | F79: 0.000836709629 | G79: 0.0006322802704 | H79: 2.234448925e-06 | I79: 8.0172213e-05 | J79: 0.003121285177 | L79: 0.001153255299 | M79: 0.0005348376506 | N79: 0.0004109954268 | O79: 1.043458781e-06 | P79: 3.536592156e-05 | Q79: 0.002135497756
A80: 2004 | B80: 1 | C80: 4 | D80: 6 | E80: 0.001637639775 | F80: 0.0008380364331 | G80: 0.000640814593 | H80: 2.234448925e-06 | I80: 8.0172213e-05 | J80: 0.003198897463 | L80: 0.001203025953 | M80: 0.0005356857642 | N80: 0.0004165429154 | O80: 1.043458781e-06 | P80: 3.536592156e-05 | Q80: 0.002191664013
A81: 2004 | B81: 1 | C81: 4 | D81: 7 | E81: 0.001692349472 | F81: 0.0008576398484 | G81: 0.0006629765171 | H81: 2.234448925e-06 | I81: 8.0172213e-05 | J81: 0.0032953725 | L81: 0.001243216224 | M81: 0.0005482165684 | N81: 0.0004309486305 | O81: 1.043458781e-06 | P81: 3.536592156e-05 | Q81: 0.002258790803
A82: 2004 | B82: 1 | C82: 4 | D82: 8 | E82: 0.002008339629 | F82: 0.0008143739489 | G82: 0.0006774392715 | H82: 2.234448925e-06 | I82: 7.349760905e-05 | J82: 0.003575884908 | L82: 0.001475345637 | M82: 0.0005205603407 | N82: 0.000440349724 | O82: 1.043458781e-06 | P82: 3.242159072e-05 | Q82: 0.002469720751
A83: 2004 | B83: 1 | C83: 4 | D83: 9 | E83: 0.002275157357 | F83: 0.0007695580607 | G83: 0.0006776705061 | H83: 2.234448925e-06 | I83: 0 | J83: 0.003724620373 | L83: 0.00167135251 | M83: 0.0004919133364 | N83: 0.0004405000313 | O83: 1.043458781e-06 | P83: 0 | Q83: 0.002604809336
A84: 2004 | B84: 1 | C84: 4 | D84: 10 | E84: 0.002403151899 | F84: 0.0007982824954 | G84: 0.0007216882771 | H84: 2.234448925e-06 | I84: 0 | J84: 0.003925357121 | L84: 0.001765378533 | M84: 0.0005102744364 | N84: 0.000469112505 | O84: 1.043458781e-06 | P84: 0 | Q84: 0.002745808933
A85: 2004 | B85: 1 | C85: 4 | D85: 11 | E85: 0.002299816169 | F85: 0.0008314068293 | G85: 0.0007323708913 | H85: 2.234448925e-06 | I85: 0 | J85: 0.003865828338 | L85: 0.00168946711 | M85: 0.0005314480196 | N85: 0.0004760564281 | O85: 1.043458781e-06 | P85: 0 | Q85: 0.002698015017
A86: 2004 | B86: 1 | C86: 4 | D86: 12 | E86: 0.00220227455 | F86: 0.000835706576 | G86: 0.0007325990354 | H86: 2.234448925e-06 | I86: 0 | J86: 0.003772814611 | L86: 0.001617812098 | M86: 0.0005341964837 | N86: 0.0004762047265 | O86: 1.043458781e-06 | P86: 0 | Q86: 0.002629256767
A87: 2004 | B87: 1 | C87: 4 | D87: 13 | E87: 0.00209289031 | F87: 0.0008514543815 | G87: 0.0007270783431 | H87: 2.234448925e-06 | I87: 0 | J87: 0.003673657483 | L87: 0.001537457381 | M87: 0.000544262723 | N87: 0.0004726161608 | O87: 1.043458781e-06 | P87: 0 | Q87: 0.002555379724
A88: 2004 | B88: 1 | C88: 4 | D88: 14 | E88: 0.002015211293 | F88: 0.0007888840509 | G88: 0.0007223990442 | H88: 2.234448925e-06 | I88: 0 | J88: 0.003528728837 | L88: 0.001480393627 | M88: 0.0005042668063 | N88: 0.0004695745185 | O88: 1.043458781e-06 | P88: 0 | Q88: 0.002455278411
A89: 2004 | B89: 1 | C89: 4 | D89: 15 | E89: 0.001901404689 | F89: 0.000800384768 | G89: 0.0007231252823 | H89: 2.234448925e-06 | I89: 0 | J89: 0.003427149189 | L89: 0.0013967902 | M89: 0.0005116182413 | N89: 0.0004700465884 | O89: 1.043458781e-06 | P89: 0 | Q89: 0.002379498488
A90: 2004 | B90: 1 | C90: 4 | D90: 16 | E90: 0.001987791966 | F90: 0.0007832528004 | G90: 0.0007094188998 | H90: 2.234448925e-06 | I90: 0 | J90: 0.003482698115 | L90: 0.001460251125 | M90: 0.0005006672244 | N90: 0.0004611371526 | O90: 1.043458781e-06 | P90: 0 | Q90: 0.002423098961
A91: 2004 | B91: 1 | C91: 4 | D91: 17 | E91: 0.002284219033 | F91: 0.0008140199673 | G91: 0.0007200645511 | H91: 2.234448925e-06 | I91: 1.336203577e-06 | J91: 0.003821874204 | L91: 0.001678009304 | M91: 0.0005203340702 | N91: 0.000468057049 | O91: 1.043458781e-06 | P91: 5.894320378e-07 | Q91: 0.002668033314
A92: 2004 | B92: 1 | C92: 4 | D92: 18 | E92: 0.002586908387 | F92: 0.0007677281158 | G92: 0.0006926851058 | H92: 2.234448925e-06 | I92: 8.0172213e-05 | J92: 0.004129728271 | L92: 0.001900367819 | M92: 0.0004907436075 | N92: 0.0004502598358 | O92: 1.043458781e-06 | P92: 3.536592156e-05 | Q92: 0.002877780643
A93: 2004 | B93: 1 | C93: 4 | D93: 19 | E93: 0.002641950088 | F93: 0.0007837446562 | G93: 0.000699672068 | H93: 2.234448925e-06 | I93: 8.0172213e-05 | J93: 0.004207773474 | L93: 0.001940801983 | M93: 0.0005009816262 | N93: 0.0004548015077 | O93: 1.043458781e-06 | P93: 3.536592156e-05 | Q93: 0.002932994497
A94: 2004 | B94: 1 | C94: 4 | D94: 20 | E94: 0.00268459876 | F94: 0.0007377199859 | G94: 0.0006664479715 | H94: 2.234448925e-06 | I94: 8.0172213e-05 | J94: 0.004171173379 | L94: 0.001972132108 | M94: 0.0004715619498 | N94: 0.0004332051486 | O94: 1.043458781e-06 | P94: 3.536592156e-05 | Q94: 0.002913308587
A95: 2004 | B95: 1 | C95: 4 | D95: 21 | E95: 0.002553234068 | F95: 0.0007581259729 | G95: 0.0006663092478 | H95: 2.234448925e-06 | I95: 8.0172213e-05 | J95: 0.00406007595 | L95: 0.00187563034 | M95: 0.0004846057702 | N95: 0.0004331149753 | O95: 1.043458781e-06 | P95: 3.536592156e-05 | Q95: 0.002829760465
A96: 2004 | B96: 1 | C96: 4 | D96: 22 | E96: 0.002442768512 | F96: 0.0007913145369 | G96: 0.0006709056972 | H96: 2.234448925e-06 | I96: 8.0172213e-05 | J96: 0.003987395408 | L96: 0.001794481278 | M96: 0.0005058204103 | N96: 0.0004361027638 | O96: 1.043458781e-06 | P96: 3.536592156e-05 | Q96: 0.002772813833
A97: 2004 | B97: 1 | C97: 4 | D97: 23 | E97: 0.001993220299 | F97: 0.0008626308951 | G97: 0.0006903205962 | H97: 2.234448925e-06 | I97: 8.0172213e-05 | J97: 0.003628578452 | L97: 0.001464238831 | M97: 0.0005514069222 | N97: 0.000448722855 | O97: 1.043458781e-06 | P97: 3.536592156e-05 | Q97: 0.002500777988
A98: 2004 | B98: 1 | C98: 4 | D98: 24 | E98: 0.001697091783 | F98: 0.0008942734988 | G98: 0.0006854553819 | H98: 2.234448925e-06 | I98: 8.0172213e-05 | J98: 0.003359227325 | L98: 0.00124669997 | M98: 0.0005716333607 | N98: 0.0004455603637 | O98: 1.043458781e-06 | P98: 3.536592156e-05 | Q98: 0.002300303075
A99: 2004 | B99: 1 | C99: 5 | D99: 1 | E99: 0.002035710403 | F99: 0.0008159366793 | G99: 0.0006642845837 | H99: 2.234448925e-06 | I99: 8.0172213e-05 | J99: 0.003598338328 | L99: 0.001495452471 | M99: 0.000521559262 | N99: 0.0004317989012 | O99: 1.043458781e-06 | P99: 3.536592156e-05 | Q99: 0.002485220014
A100: 2004 | B100: 1 | C100: 5 | D100: 2 | E100: 0.001984791413 | F100: 0.0008001911216 | G100: 0.0006575362641 | H100: 2.234448925e-06 | I100: 8.0172213e-05 | J100: 0.00352492546 | L100: 0.00145804689 | M100: 0.0005114944596 | N100: 0.000427412352 | O100: 1.043458781e-06 | P100: 3.536592156e-05 | Q100: 0.002433363082
A101: 2004 | B101: 1 | C101: 5 | D101: 3 | E101: 0.001945680321 | F101: 0.0007648510477 | G101: 0.0006414782421 | H101: 2.234448925e-06 | I101: 8.0172213e-05 | J101: 0.003434416272 | L101: 0.001429315505 | M101: 0.0004889045414 | N101: 0.0004169743012 | O101: 1.043458781e-06 | P101: 3.536592156e-05 | Q101: 0.002371603728
A102: 2004 | B102: 1 | C102: 5 | D102: 4 | E102: 0.002038457772 | F102: 0.0007529927812 | G102: 0.0006306535211 | H102: 2.234448925e-06 | I102: 8.0172213e-05 | J102: 0.003504510736 | L102: 0.001497470714 | M102: 0.0004813245552 | N102: 0.0004099380057 | O102: 1.043458781e-06 | P102: 3.536592156e-05 | Q102: 0.002425142655
A103: 2004 | B103: 1 | C103: 5 | D103: 5 | E103: 0.002130550937 | F103: 0.0007128773982 | G103: 0.0006220193764 | H103: 2.234448925e-06 | I103: 8.0172213e-05 | J103: 0.003547854373 | L103: 0.00156512324 | M103: 0.0004556821861 | N103: 0.0004043256307 | O103: 1.043458781e-06 | P103: 3.536592156e-05 | Q103: 0.002461540437
A104: 2004 | B104: 1 | C104: 5 | D104: 6 | E104: 0.002290207273 | F104: 0.0007040316678 | G104: 0.0006304042275 | H104: 2.234448925e-06 | I104: 8.0172213e-05 | J104: 0.00370704983 | L104: 0.001682408323 | M104: 0.0004500278593 | N104: 0.0004097759597 | O104: 1.043458781e-06 | P104: 3.536592156e-05 | Q104: 0.002578621522
A105: 2004 | B105: 1 | C105: 5 | D105: 7 | E105: 0.002696803283 | F105: 0.0006515946428 | G105: 0.0006607078778 | H105: 2.234448925e-06 | I105: 8.0172213e-05 | J105: 0.004091512466 | L105: 0.001981097668 | M105: 0.0004165093072 | N105: 0.0004294739674 | O105: 1.043458781e-06 | P105: 3.536592156e-05 | Q105: 0.002863490323
A106: 2004 | B106: 1 | C106: 5 | D106: 8 | E106: 0.002638519563 | F106: 0.0008317829498 | G106: 0.0008227371296 | H106: 2.234448925e-06 | I106: 7.349760905e-05 | J106: 0.004368771701 | L106: 0.001938281886 | M106: 0.0005316884416 | N106: 0.0005347963768 | O106: 1.043458781e-06 | P106: 3.242159072e-05 | Q106: 0.003038231754
A107: 2004 | B107: 1 | C107: 5 | D107: 9 | E107: 0.0026828995 | F107: 0.0009946198598 | G107: 0.0009407338654 | H107: 2.234448925e-06 | I107: 0 | J107: 0.004620487674 | L107: 0.001970883815 | M107: 0.0006357762964 | N107: 0.000611496728 | O107: 1.043458781e-06 | P107: 0 | Q107: 0.003219200298
A108: 2004 | B108: 1 | C108: 5 | D108: 10 | E108: 0.00251902786 | F108: 0.0010353245 | G108: 0.0009791237429 | H108: 2.234448925e-06 | I108: 0 | J108: 0.004535710552 | L108: 0.00185050213 | M108: 0.0006617953278 | N108: 0.0006364509529 | O108: 1.043458781e-06 | P108: 0 | Q108: 0.00314979187
A109: 2004 | B109: 1 | C109: 5 | D109: 11 | E109: 0.002440721518 | F109: 0.001050547653 | G109: 0.001001578114 | H109: 2.234448925e-06 | I109: 0 | J109: 0.004495081734 | L109: 0.001792977537 | M109: 0.000671526201 | N109: 0.0006510467646 | O109: 1.043458781e-06 | P109: 0 | Q109: 0.003116593962
A110: 2004 | B110: 1 | C110: 5 | D110: 12 | E110: 0.002308387048 | F110: 0.001014054669 | G110: 0.0009770180924 | H110: 2.234448925e-06 | I110: 0 | J110: 0.004301694258 | L110: 0.00169576336 | M110: 0.0006481993248 | N110: 0.000635082236 | O110: 1.043458781e-06 | P110: 0 | Q110: 0.00298008838
A111: 2004 | B111: 1 | C111: 5 | D111: 13 | E111: 0.002165576951 | F111: 0.001014602726 | G111: 0.0009651128838 | H111: 2.234448925e-06 | I111: 0 | J111: 0.004147527009 | L111: 0.001590853688 | M111: 0.0006485496512 | N111: 0.0006273436009 | O111: 1.043458781e-06 | P111: 0 | Q111: 0.002867790399
A112: 2004 | B112: 1 | C112: 5 | D112: 14 | E112: 0.002086549079 | F112: 0.0009315463124 | G112: 0.0009346138801 | H112: 2.234448925e-06 | I112: 0 | J112: 0.00395494372 | L112: 0.001532799052 | M112: 0.0005954587158 | N112: 0.0006075186093 | O112: 1.043458781e-06 | P112: 0 | Q112: 0.002736819836
A113: 2004 | B113: 1 | C113: 5 | D113: 15 | E113: 0.002006622179 | F113: 0.0009441750602 | G113: 0.0009382546208 | H113: 2.234448925e-06 | I113: 0 | J113: 0.003891286309 | L113: 0.001474083981 | M113: 0.0006035312054 | N113: 0.0006098851671 | O113: 1.043458781e-06 | P113: 0 | Q113: 0.002688543812
A114: 2004 | B114: 1 | C114: 5 | D114: 16 | E114: 0.002092470257 | F114: 0.001000602503 | G114: 0.0009398885113 | H114: 2.234448925e-06 | I114: 0 | J114: 0.00403519572 | L114: 0.001537148806 | M114: 0.0006396004938 | N114: 0.0006109472302 | O114: 1.043458781e-06 | P114: 0 | Q114: 0.002788739989
A115: 2004 | B115: 1 | C115: 5 | D115: 17 | E115: 0.002525971062 | F115: 0.0009721862785 | G115: 0.0009208749685 | H115: 2.234448925e-06 | I115: 0 | J115: 0.004421266758 | L115: 0.001855602673 | M115: 0.0006214364065 | N115: 0.0005985880289 | O115: 1.043458781e-06 | P115: 0 | Q115: 0.003076670567
A116: 2004 | B116: 1 | C116: 5 | D116: 18 | E116: 0.003212039903 | F116: 0.0007788058623 | G116: 0.000814940531 | H116: 2.234448925e-06 | I116: 8.0172213e-05 | J116: 0.004888192958 | L116: 0.002359595452 | M116: 0.0004978246733 | N116: 0.0005297284243 | O116: 1.043458781e-06 | P116: 3.536592156e-05 | Q116: 0.00342355793
A117: 2004 | B117: 1 | C117: 5 | D117: 19 | E117: 0.003558993331 | F117: 0.0006114019379 | G117: 0.0007248943252 | H117: 2.234448925e-06 | I117: 8.0172213e-05 | J117: 0.004977696256 | L117: 0.002614470782 | M117: 0.0003908175127 | N117: 0.0004711965034 | O117: 1.043458781e-06 | P117: 3.536592156e-05 | Q117: 0.003512894179
A118: 2004 | B118: 1 | C118: 5 | D118: 20 | E118: 0.003286557133 | F118: 0.0007899800194 | G118: 0.0007778226639 | H118: 2.234448925e-06 | I118: 8.0172213e-05 | J118: 0.004936766478 | L118: 0.002414336527 | M118: 0.0005049673662 | N118: 0.0005056010328 | O118: 1.043458781e-06 | P118: 3.536592156e-05 | Q118: 0.003461314306
A119: 2004 | B119: 1 | C119: 5 | D119: 21 | E119: 0.003155048314 | F119: 0.0008210118082 | G119: 0.0007700906004 | H119: 2.234448925e-06 | I119: 8.0172213e-05 | J119: 0.004828557385 | L119: 0.002317728882 | M119: 0.0005248033624 | N119: 0.0005005750295 | O119: 1.043458781e-06 | P119: 3.536592156e-05 | Q119: 0.003379516654
A120: 2004 | B120: 1 | C120: 5 | D120: 22 | E120: 0.003022739042 | F120: 0.0008385210727 | G120: 0.000761094764 | H120: 2.234448925e-06 | I120: 8.0172213e-05 | J120: 0.004704761541 | L120: 0.002220533216 | M120: 0.0005359955532 | N120: 0.0004947275473 | O120: 1.043458781e-06 | P120: 3.536592156e-05 | Q120: 0.003287665697
A121: 2004 | B121: 1 | C121: 5 | D121: 23 | E121: 0.002590507589 | F121: 0.0008378151865 | G121: 0.0007322346106 | H121: 2.234448925e-06 | I121: 8.0172213e-05 | J121: 0.004242964048 | L121: 0.001903011827 | M121: 0.00053554434 | N121: 0.0004759678427 | O121: 1.043458781e-06 | P121: 3.536592156e-05 | Q121: 0.002950933391
A122: 2004 | B122: 1 | C122: 5 | D122: 24 | E122: 0.002151184085 | F122: 0.0008537967384 | G122: 0.0007189206481 | H122: 2.234448925e-06 | I122: 8.0172213e-05 | J122: 0.003806308133 | L122: 0.00158028055 | M122: 0.0005457599935 | N122: 0.0004673134881 | O122: 1.043458781e-06 | P122: 3.536592156e-05 | Q122: 0.002629763411
A123: 2004 | B123: 1 | C123: 6 | D123: 1 | E123: 0.002498898923 | F123: 0.000982626789 | G123: 0.0007882077216 | H123: 2.234448925e-06 | I123: 8.0172213e-05 | J123: 0.004352140095 | L123: 0.001835715219 | M123: 0.0006281101413 | N123: 0.000512351538 | O123: 1.043458781e-06 | P123: 3.536592156e-05 | Q123: 0.003012586278
A124: 2004 | B124: 1 | C124: 6 | D124: 2 | E124: 0.002460004799 | F124: 0.0009215239044 | G124: 0.0007697929022 | H124: 2.234448925e-06 | I124: 8.0172213e-05 | J124: 0.004233728268 | L124: 0.001807143221 | M124: 0.0005890522386 | N124: 0.0005003815194 | O124: 1.043458781e-06 | P124: 3.536592156e-05 | Q124: 0.002932986359
A125: 2004 | B125: 1 | C125: 6 | D125: 3 | E125: 0.002502553401 | F125: 0.0009525627997 | G125: 0.0007721811028 | H125: 2.234448925e-06 | I125: 8.0172213e-05 | J125: 0.004309703965 | L125: 0.001838399834 | M125: 0.0006088927774 | N125: 0.0005019338999 | O125: 1.043458781e-06 | P125: 3.536592156e-05 | Q125: 0.002985635891
A126: 2004 | B126: 1 | C126: 6 | D126: 4 | E126: 0.002660254266 | F126: 0.0009118302353 | G126: 0.0007476582122 | H126: 2.234448925e-06 | I126: 8.0172213e-05 | J126: 0.004402149376 | L126: 0.001954248409 | M126: 0.0005828558964 | N126: 0.0004859935071 | O126: 1.043458781e-06 | P126: 3.536592156e-05 | Q126: 0.003059507192
A127: 2004 | B127: 1 | C127: 6 | D127: 5 | E127: 0.002826531596 | F127: 0.0009086937821 | G127: 0.0007506545952 | H127: 2.234448925e-06 | I127: 8.0172213e-05 | J127: 0.004568286636 | L127: 0.002076397337 | M127: 0.0005808510273 | N127: 0.0004879412188 | O127: 1.043458781e-06 | P127: 3.536592156e-05 | Q127: 0.003181598963
A128: 2004 | B128: 1 | C128: 6 | D128: 6 | E128: 0.003064945414 | F128: 0.0009407543398 | G128: 0.0007862468084 | H128: 2.234448925e-06 | I128: 8.0172213e-05 | J128: 0.004874353225 | L128: 0.002251538424 | M128: 0.0006013446284 | N128: 0.0005110769033 | O128: 1.043458781e-06 | P128: 3.536592156e-05 | Q128: 0.003400369336
A129: 2004 | B129: 1 | C129: 6 | D129: 7 | E129: 0.003432412606 | F129: 0.0009129644999 | G129: 0.000832820473 | H129: 2.234448925e-06 | I129: 8.0172213e-05 | J129: 0.005260604241 | L129: 0.002521483362 | M129: 0.0005835809357 | N129: 0.0005413507613 | O129: 1.043458781e-06 | P129: 3.536592156e-05 | Q129: 0.00368282444
A130: 2004 | B130: 1 | C130: 6 | D130: 8 | E130: 0.003462139026 | F130: 0.001085167009 | G130: 0.0009929213436 | H130: 2.234448925e-06 | I130: 7.349760905e-05 | J130: 0.005615959437 | L130: 0.002543320677 | M130: 0.0006936554255 | N130: 0.0006454196825 | O130: 1.043458781e-06 | P130: 3.242159072e-05 | Q130: 0.003915860834
A131: 2004 | B131: 1 | C131: 6 | D131: 9 | E131: 0.003378038207 | F131: 0.001216477547 | G131: 0.001107566926 | H131: 2.234448925e-06 | I131: 0 | J131: 0.005704317129 | L131: =E131*T$5 -> 0.002481539405 | M131: =F131*U$5 -> 0.0007775911387 | N131: =G131*V$5 -> 0.0007199417137 | O131: =H131*W$5 -> 1.043458781e-06 | P131: =I131*X$5 -> 0 | Q131: =SUM(L131:P131) -> 0.003980115716
A132: 2004 | B132: 1 | C132: 6 | D132: 10 | E132: 0.003064991706 | F132: 0.001198379024 | G132: 0.001117618292 | H132: 2.234448925e-06 | I132: 0 | J132: =SUM(E132:I132) -> 0.005383223472 | L132: 0.00225157243 | M132: 0.0007660222849 | N132: 0.0007264753127 | O132: 1.043458781e-06 | P132: 0 | Q132: 0.003745113487
A133: 2004 | B133: 1 | C133: 6 | D133: 11 | E133: 0.002877463568 | F133: 0.001188512516 | G133: 0.001111609166 | H133: 2.234448925e-06 | I133: 0 | J133: 0.005179819699 | L133: 0.002113812454 | M133: 0.0007597154613 | N133: 0.0007225692547 | O133: 1.043458781e-06 | P133: 0 | Q133: 0.003597140629
A134: 2004 | B134: 1 | C134: 6 | D134: 12 | E134: 0.002717782432 | F134: 0.001141856888 | G134: 0.001089417369 | H134: 2.234448925e-06 | I134: 0 | J134: 0.004951291137 | L134: 0.001996509153 | M134: 0.0007298924668 | N134: 0.0007081441212 | O134: 1.043458781e-06 | P134: 0 | Q134: 0.0034355892
A135: 2004 | B135: 1 | C135: 6 | D135: 13 | E135: 0.002584211632 | F135: 0.001152086872 | G135: 0.001078117282 | H135: 2.234448925e-06 | I135: 0 | J135: 0.004816650235 | L135: 0.001898386757 | M135: 0.0007364316298 | N135: 0.000700798828 | O135: 1.043458781e-06 | P135: 0 | Q135: 0.003336660674
A136: 2004 | B136: 1 | C136: 6 | D136: 14 | E136: 0.00243282626 | F136: 0.001135042341 | G136: 0.001072235786 | H136: 2.234448925e-06 | I136: 0 | J136: 0.004642338836 | L136: 0.001787177605 | M136: 0.0007255365037 | N136: 0.0006969757321 | O136: 1.043458781e-06 | P136: 0 | Q136: 0.003210733299
A137: 2004 | B137: 1 | C137: 6 | D137: 15 | E137: 0.002434059756 | F137: 0.001016407678 | G137: 0.001018691273 | H137: 2.234448925e-06 | I137: 0 | J137: 0.004471393156 | L137: 0.001788083742 | M137: 0.0006497034043 | N137: 0.000662170677 | O137: 1.043458781e-06 | P137: 0 | Q137: 0.003101001282
A138: 2004 | B138: 1 | C138: 6 | D138: 16 | E138: 0.002691936444 | F138: 0.001006836535 | G138: 0.0009954279844 | H138: 2.234448925e-06 | I138: 0 | J138: 0.004696435412 | L138: 0.001977522441 | M138: 0.0006435853827 | N138: 0.0006470490516 | O138: 1.043458781e-06 | P138: 0 | Q138: 0.003269200334
A139: 2004 | B139: 1 | C139: 6 | D139: 17 | E139: 0.003123092274 | F139: 0.0009969591547 | G139: 0.0009775904842 | H139: 2.234448925e-06 | I139: 0 | J139: 0.005099876362 | L139: 0.002294253667 | M139: 0.0006372716096 | N139: 0.0006354543027 | O139: 1.043458781e-06 | P139: 0 | Q139: 0.003568023038
A140: 2004 | B140: 1 | C140: 6 | D140: 18 | E140: 0.003599000923 | F140: 0.0009235514717 | G140: 0.0009227760114 | H140: 2.234448925e-06 | I140: 7.883600942e-05 | J140: 0.005526398864 | L140: 0.002643860744 | M140: 0.0005903482908 | N140: 0.0005998237465 | O140: 1.043458781e-06 | P140: 3.477648953e-05 | Q140: 0.00386985273
A141: 2004 | B141: 1 | C141: 6 | D141: 19 | E141: 0.004066334383 | F141: 0.0008155687366 | G141: 0.0008657521391 | H141: 2.234448925e-06 | I141: 8.0172213e-05 | J141: 0.00583006192 | L141: 0.002987168406 | M141: 0.0005213240674 | N141: 0.0005627570345 | O141: 1.043458781e-06 | P141: 3.536592156e-05 | Q141: 0.004107658888
A142: 2004 | B142: 1 | C142: 6 | D142: 20 | E142: 0.004015344515 | F142: 0.0008279395124 | G142: 0.0008437829239 | H142: 2.234448925e-06 | I142: 8.0172213e-05 | J142: 0.005769473613 | L142: 0.002949710757 | M142: 0.0005292316573 | N142: 0.0005484765842 | O142: 1.043458781e-06 | P142: 3.536592156e-05 | Q142: 0.004063828379
A143: 2004 | B143: 1 | C143: 6 | D143: 21 | E143: 0.003666570259 | F143: 0.0008774867295 | G143: 0.000840669472 | H143: 2.234448925e-06 | I143: 8.0172213e-05 | J143: 0.005467133122 | L143: 0.002693497829 | M143: 0.0005609029998 | N143: 0.0005464527752 | O143: 1.043458781e-06 | P143: 3.536592156e-05 | Q143: 0.003837262985
A144: 2004 | B144: 1 | C144: 6 | D144: 22 | E144: 0.003436096887 | F144: 0.0009416660856 | G144: 0.0008517660003 | H144: 2.234448925e-06 | I144: 8.0172213e-05 | J144: 0.005311935635 | L144: 0.002524189871 | M144: 0.0006019274303 | N144: 0.0005536657512 | O144: 1.043458781e-06 | P144: 3.536592156e-05 | Q144: 0.003716192433
A145: 2004 | B145: 1 | C145: 6 | D145: 23 | E145: 0.00315432119 | F145: 0.0009558613201 | G145: 0.0008172466099 | H145: 2.234448925e-06 | I145: 8.0172213e-05 | J145: 0.005009835782 | L145: 0.00231719473 | M145: 0.0006110012423 | N145: 0.000531227424 | O145: 1.043458781e-06 | P145: 3.536592156e-05 | Q145: 0.003495832776
A146: 2004 | B146: 1 | C146: 6 | D146: 24 | E146: 0.002858541423 | F146: 0.000988938856 | G146: 0.0008079027297 | H146: 2.234448925e-06 | I146: 8.0172213e-05 | J146: 0.004737789671 | L146: 0.002099912064 | M146: 0.0006321449115 | N146: 0.000525153706 | O146: 1.043458781e-06 | P146: 3.536592156e-05 | Q146: 0.003293620062
A147: 2004 | B147: 1 | C147: 7 | D147: 1 | E147: 0.002633309924 | F147: 0.0009781468834 | G147: 0.0007961506976 | H147: 2.234448925e-06 | I147: 8.0172213e-05 | J147: 0.004490014167 | L147: 0.001934454835 | M147: 0.0006252465168 | N147: 0.0005175146388 | O147: 1.043458781e-06 | P147: 3.536592156e-05 | Q147: 0.003113625371
A148: 2004 | B148: 1 | C148: 7 | D148: 2 | E148: 0.002629314432 | F148: 0.0009288004934 | G148: 0.0007828663089 | H148: 2.234448925e-06 | I148: 8.0172213e-05 | J148: 0.004423387896 | L148: 0.001931519708 | M148: 0.0005937035461 | N148: 0.0005088795078 | O148: 1.043458781e-06 | P148: 3.536592156e-05 | Q148: 0.003070512142
A149: 2004 | B149: 1 | C149: 7 | D149: 3 | E149: 0.002648180989 | F149: 0.0009460257695 | G149: 0.0007796519425 | H149: 2.234448925e-06 | I149: 8.0172213e-05 | J149: 0.004456265363 | L149: 0.001945379263 | M149: 0.0006047142072 | N149: 0.0005067901023 | O149: 1.043458781e-06 | P149: 3.536592156e-05 | Q149: 0.003093292953
A150: 2004 | B150: 1 | C150: 7 | D150: 4 | E150: 0.002807452911 | F150: 0.0008962608622 | G150: 0.0007514662993 | H150: 2.234448925e-06 | I150: 8.0172213e-05 | J150: 0.004537586735 | L150: 0.002062381951 | M150: 0.0005729037138 | N150: 0.0004884688435 | O150: 1.043458781e-06 | P150: 3.536592156e-05 | Q150: 0.003160163888
A151: 2004 | B151: 1 | C151: 7 | D151: 5 | E151: 0.002921813812 | F151: 0.0008589240412 | G151: 0.0007403219732 | H151: 2.234448925e-06 | I151: 8.0172213e-05 | J151: 0.004603466488 | L151: 0.00214639257 | M151: 0.0005490374442 | N151: 0.0004812247979 | O151: 1.043458781e-06 | P151: 3.536592156e-05 | Q151: 0.003213064192
A152: 2004 | B152: 1 | C152: 7 | D152: 6 | E152: 0.003180296439 | F152: 0.0008977632187 | G152: 0.0007788729198 | H152: 2.234448925e-06 | I152: 8.0172213e-05 | J152: 0.004939339239 | L152: 0.002336276397 | M152: 0.0005738640432 | N152: 0.0005062837212 | O152: 1.043458781e-06 | P152: 3.536592156e-05 | Q152: 0.003452833542
A153: 2004 | B153: 1 | C153: 7 | D153: 7 | E153: 0.003549192447 | F153: 0.0008574984029 | G153: 0.0008171247627 | H153: 2.234448925e-06 | I153: 8.0172213e-05 | J153: 0.005306222275 | L153: 0.002607270959 | M153: 0.0005481261543 | N153: 0.0005311482207 | O153: 1.043458781e-06 | P153: 3.536592156e-05 | Q153: 0.003722954714
A154: 2004 | B154: 1 | C154: 7 | D154: 8 | E154: 0.003555942674 | F154: 0.00104073597 | G154: 0.000980269784 | H154: 2.234448925e-06 | I154: 7.349760905e-05 | J154: 0.005652680486 | L154: 0.00261222974 | M154: 0.0006652544225 | N154: 0.0006371959037 | O154: 1.043458781e-06 | P154: 3.242159072e-05 | Q154: 0.003948145116
A155: 2004 | B155: 1 | C155: 7 | D155: 9 | E155: 0.003445374918 | F155: 0.001166167201 | G155: 0.001093326423 | H155: 2.234448925e-06 | I155: 0 | J155: 0.005707102991 | L155: 0.002531005602 | M155: 0.0007454319927 | N155: 0.0007106850884 | O155: 1.043458781e-06 | P155: 0 | Q155: 0.003988166142
A156: 2004 | B156: 1 | C156: 7 | D156: 10 | E156: 0.003237897738 | F156: 0.001210000109 | G156: 0.001130193126 | H156: 2.234448925e-06 | I156: 0 | J156: 0.005580325422 | L156: 0.002378590867 | M156: 0.0007734506608 | N156: 0.000734649218 | O156: 1.043458781e-06 | P156: 0 | Q156: 0.003887734204
A157: 2004 | B157: 1 | C157: 7 | D157: 11 | E157: 0.003085844177 | F157: 0.001225929869 | G157: 0.001135304812 | H157: 2.234448925e-06 | I157: 0 | J157: 0.005449313307 | L157: 0.002266890856 | M157: 0.0007836332085 | N157: 0.000737971921 | O157: 1.043458781e-06 | P157: 0 | Q157: 0.003789539444
A158: 2004 | B158: 1 | C158: 7 | D158: 12 | E158: 0.002924344719 | F158: 0.001181525918 | G158: 0.001114055155 | H158: 2.234448925e-06 | I158: 0 | J158: 0.00522216024 | L158: 0.002148251798 | M158: 0.0007552495203 | N158: 0.0007241591985 | O158: 1.043458781e-06 | P158: 0 | Q158: 0.003628703976
A159: 2004 | B159: 1 | C159: 7 | D159: 13 | E159: 0.002786218762 | F159: 0.001195514369 | G159: 0.00110356942 | H159: 2.234448925e-06 | I159: 0 | J159: 0.005087537 | L159: 0.00204678314 | M159: 0.0007641911532 | N159: 0.0007173432511 | O159: 1.043458781e-06 | P159: 0 | Q159: 0.003529361003
A160: 2004 | B160: 1 | C160: 7 | D160: 14 | E160: 0.002600940603 | F160: 0.001164404482 | G160: 0.001092181882 | H160: 2.234448925e-06 | I160: 0 | J160: 0.004859761416 | L160: 0.00191067602 | M160: 0.0007443052356 | N160: 0.0007099411131 | O160: 1.043458781e-06 | P160: 0 | Q160: 0.003365965827
A161: 2004 | B161: 1 | C161: 7 | D161: 15 | E161: 0.002673076672 | F161: 0.0010747169 | G161: 0.001051574494 | H161: 2.234448925e-06 | I161: 0 | J161: 0.004801602514 | L161: 0.001963667871 | M161: 0.0006869755549 | N161: 0.0006835454594 | O161: 1.043458781e-06 | P161: 0 | Q161: 0.003335232344
A162: 2004 | B162: 1 | C162: 7 | D162: 16 | E162: 0.002925157631 | F162: 0.001054444863 | G162: 0.001022260961 | H162: 2.234448925e-06 | I162: 0 | J162: 0.005004097904 | L162: 0.002148848972 | M162: 0.0006740173575 | N162: 0.0006644910491 | O162: 1.043458781e-06 | P162: 0 | Q162: 0.003488400837
A163: 2004 | B163: 1 | C163: 7 | D163: 17 | E163: 0.003350297652 | F163: 0.001026528765 | G163: 0.0009961541956 | H163: 2.234448925e-06 | I163: 0 | J163: 0.005375215062 | L163: 0.002461160927 | M163: 0.0006561729587 | N163: 0.0006475211042 | O163: 1.043458781e-06 | P163: 0 | Q163: 0.003765898448
A164: 2004 | B164: 1 | C164: 7 | D164: 18 | E164: 0.003900634064 | F164: 0.0009675392405 | G164: 0.0009512293638 | H164: 2.234448925e-06 | I164: 7.749980593e-05 | J164: 0.005899136923 | L164: 0.002865443355 | M164: 0.0006184659484 | N164: 0.000618319022 | O164: 1.043458781e-06 | P164: 3.418705752e-05 | Q164: 0.004137458842
A165: 2004 | B165: 1 | C165: 7 | D165: 19 | E165: 0.00427541889 | F165: 0.0007910202542 | G165: 0.00086399271 | H165: 2.234448925e-06 | I165: 8.0172213e-05 | J165: 0.006012838516 | L165: 0.003140763898 | M165: 0.0005056323002 | N165: 0.0005616133687 | O165: 1.043458781e-06 | P165: 3.536592156e-05 | Q165: 0.004244418948
A166: 2004 | B166: 1 | C166: 7 | D166: 20 | E166: 0.004220658276 | F166: 0.0008104372629 | G166: 0.0008455367771 | H166: 2.234448925e-06 | I166: 8.0172213e-05 | J166: 0.005959038978 | L166: 0.003100536224 | M166: 0.0005180439505 | N166: 0.0005496166255 | O166: 1.043458781e-06 | P166: 3.536592156e-05 | Q166: 0.004204606181
A167: 2004 | B167: 1 | C167: 7 | D167: 21 | E167: 0.003936335554 | F167: 0.0009090407744 | G167: 0.000865000342 | H167: 2.234448925e-06 | I167: 8.0172213e-05 | J167: 0.005792783332 | L167: 0.002891670014 | M167: 0.0005810728301 | N167: 0.0005622683506 | O167: 1.043458781e-06 | P167: 3.536592156e-05 | Q167: 0.004071420575
A168: 2004 | B168: 1 | C168: 7 | D168: 22 | E168: 0.003627058764 | F168: 0.0009436510285 | G168: 0.0008613296368 | H168: 2.234448925e-06 | I168: 8.0172213e-05 | J168: 0.005514446092 | L168: 0.002664472305 | M168: 0.0006031962363 | N168: 0.0005598823153 | O168: 1.043458781e-06 | P168: 3.536592156e-05 | Q168: 0.003863960237
A169: 2004 | B169: 1 | C169: 7 | D169: 23 | E169: 0.003299947897 | F169: 0.000941610155 | G169: 0.0008245954005 | H169: 2.234448925e-06 | I169: 8.0172213e-05 | J169: 0.005148560115 | L169: 0.002424173512 | M169: 0.0006018916786 | N169: 0.0005360042918 | O169: 1.043458781e-06 | P169: 3.536592156e-05 | Q169: 0.003598478862
A170: 2004 | B170: 1 | C170: 7 | D170: 24 | E170: 0.002905442871 | F170: 0.0009305508233 | G170: 0.0007947816051 | H170: 2.234448925e-06 | I170: 8.0172213e-05 | J170: 0.004713181961 | L170: 0.002134366319 | M170: 0.0005948223838 | N170: 0.0005166247 | O170: 1.043458781e-06 | P170: 3.536592156e-05 | Q170: 0.003282222783
A171: 2004 | B171: 1 | C171: 8 | D171: 1 | E171: 0.002949028672 | F171: 0.0009977332534 | G171: 0.000815300999 | H171: 2.234448925e-06 | I171: 8.0172213e-05 | J171: 0.004844469587 | L171: 0.002166384868 | M171: 0.0006377664254 | N171: 0.0005299627361 | O171: 1.043458781e-06 | P171: 3.536592156e-05 | Q171: 0.00337052341
A172: 2004 | B172: 1 | C172: 8 | D172: 2 | E172: 0.00291671987 | F172: 0.0009224265984 | G172: 0.000792599622 | H172: 2.234448925e-06 | I172: 8.0172213e-05 | J172: 0.004714152753 | L172: 0.002142650511 | M172: 0.0005896292545 | N172: 0.0005152063653 | O172: 1.043458781e-06 | P172: 3.536592156e-05 | Q172: 0.003283895512
A173: 2004 | B173: 1 | C173: 8 | D173: 3 | E173: 0.002972386876 | F173: 0.0009549126325 | G173: 0.0007954200906 | H173: 2.234448925e-06 | I173: 8.0172213e-05 | J173: 0.004805126261 | L173: 0.00218354403 | M173: 0.0006103948266 | N173: 0.000517039729 | O173: 1.043458781e-06 | P173: 3.536592156e-05 | Q173: 0.003347387966
A174: 2004 | B174: 1 | C174: 8 | D174: 4 | E174: 0.003151063046 | F174: 0.0008959841845 | G174: 0.0007631165152 | H174: 2.234448925e-06 | I174: 8.0172213e-05 | J174: 0.004892570407 | L174: 0.002314801265 | M174: 0.0005727268572 | N174: 0.000496041728 | O174: 1.043458781e-06 | P174: 3.536592156e-05 | Q174: 0.003419979231
A175: 2004 | B175: 1 | C175: 8 | D175: 5 | E175: 0.003276012435 | F175: 0.000848902386 | G175: 0.0007469436485 | H175: 2.234448925e-06 | I175: 8.0172213e-05 | J175: 0.004954265131 | L175: 0.00240659029 | M175: 0.0005426314482 | N175: 0.0004855290256 | O175: 1.043458781e-06 | P175: 3.536592156e-05 | Q175: 0.003471160144
A176: 2004 | B176: 1 | C176: 8 | D176: 6 | E176: 0.003558163792 | F176: 0.0008931503676 | G176: 0.0007873141505 | H176: 2.234448925e-06 | I176: 8.0172213e-05 | J176: 0.005321034972 | L176: 0.002613861395 | M176: 0.0005709154379 | N176: 0.000511770698 | O176: 1.043458781e-06 | P176: 3.536592156e-05 | Q176: 0.003732956911
A177: 2004 | B177: 1 | C177: 8 | D177: 7 | E177: 0.003933613732 | F177: 0.0008306687058 | G177: 0.0008178490209 | H177: 2.234448925e-06 | I177: 8.0172213e-05 | J177: 0.00566453812 | L177: 0.002889670537 | M177: 0.0005309761997 | N177: 0.0005316190038 | O177: 1.043458781e-06 | P177: 3.536592156e-05 | Q177: 0.003988675121
A178: 2004 | B178: 1 | C178: 8 | D178: 8 | E178: 0.003847670881 | F178: 0.001010752392 | G178: 0.0009804580091 | H178: 2.234448925e-06 | I178: 7.216140548e-05 | J178: 0.005913277136 | L178: 0.002826536091 | M178: 0.0006460884588 | N178: 0.0006373182539 | O178: 1.043458781e-06 | P178: 3.183215868e-05 | Q178: 0.004142818421
A179: 2004 | B179: 1 | C179: 8 | D179: 9 | E179: 0.003723345228 | F179: 0.001143844129 | G179: 0.001097313621 | H179: 2.234448925e-06 | I179: 0 | J179: 0.005966737427 | L179: 0.002735205269 | M179: 0.0007311627422 | N179: 0.0007132768507 | O179: 1.043458781e-06 | P179: 0 | Q179: 0.004180688321
A180: 2004 | B180: 1 | C180: 8 | D180: 10 | E180: 0.003499735093 | F180: 0.001195503073 | G180: 0.00113685655 | H180: 2.234448925e-06 | I180: 0 | J180: 0.005834329165 | L180: 0.00257093911 | M180: 0.0007641839326 | N180: 0.0007389805834 | O180: 1.043458781e-06 | P180: 0 | Q180: 0.004075147085
A181: 2004 | B181: 1 | C181: 8 | D181: 11 | E181: 0.003278633887 | F181: 0.001191375381 | G181: 0.00113256025 | H181: 2.234448925e-06 | I181: 0 | J181: 0.005604803967 | L181: 0.002408516034 | M181: 0.0007615454488 | N181: 0.0007361878985 | O181: 1.043458781e-06 | P181: 0 | Q181: 0.00390729284
A182: 2004 | B182: 1 | C182: 8 | D182: 12 | E182: 0.003164966828 | F182: 0.001177426118 | G182: 0.001124369834 | H182: 2.234448925e-06 | I182: 0 | J182: 0.005468997229 | L182: 0.002325015118 | M182: 0.0007526288657 | N182: 0.0007308639559 | O182: 1.043458781e-06 | P182: 0 | Q182: 0.003809551398
A183: 2004 | B183: 1 | C183: 8 | D183: 13 | E183: 0.002965233148 | F183: 0.001171858589 | G183: 0.001106812362 | H183: 2.234448925e-06 | I183: 0 | J183: 0.005246138549 | L183: 0.002178288833 | M183: 0.0007490700156 | N183: 0.0007194512316 | O183: 1.043458781e-06 | P183: 0 | Q183: 0.003647853539
A184: 2004 | B184: 1 | C184: 8 | D184: 14 | E184: 0.002799060041 | F184: 0.001156571595 | G184: 0.001102927 | H184: 2.234448925e-06 | I184: 0 | J184: 0.005060793086 | L184: 0.002056216467 | M184: 0.0007392983341 | N184: 0.000716925665 | O184: 1.043458781e-06 | P184: 0 | Q184: 0.003513483925
A185: 2004 | B185: 1 | C185: 8 | D185: 15 | E185: 0.002886663003 | F185: 0.0010610313 | G185: 0.001059757213 | H185: 2.234448925e-06 | I185: 0 | J185: 0.005009685965 | L185: 0.002120570447 | M185: 0.0006782275094 | N185: 0.0006888643985 | O185: 1.043458781e-06 | P185: 0 | Q185: 0.003488705814
A186: 2004 | B186: 1 | C186: 8 | D186: 16 | E186: 0.003103026024 | F186: 0.001007598622 | G186: 0.001016686957 | H186: 2.234448925e-06 | I186: 0 | J186: 0.005129546052 | L186: 0.002279512807 | M186: 0.0006440725207 | N186: 0.0006608678295 | O186: 1.043458781e-06 | P186: 0 | Q186: 0.003585496616
A187: 2004 | B187: 1 | C187: 8 | D187: 17 | E187: 0.003573433418 | F187: 0.0009736945919 | G187: 0.0009878646759 | H187: 2.234448925e-06 | I187: 0 | J187: 0.005537227134 | L187: 0.002625078609 | M187: 0.0006224005436 | N187: 0.0006421327426 | O187: 1.043458781e-06 | P187: 0 | Q187: 0.003890655354
A188: 2004 | B188: 1 | C188: 8 | D188: 18 | E188: 0.004174405989 | F188: 0.0008951414556 | G188: 0.0009355444415 | H188: 2.234448925e-06 | I188: 7.482739877e-05 | J188: 0.006082153734 | L188: 0.003066558848 | M188: 0.000572188172 | N188: 0.0006081234938 | O188: 1.043458781e-06 | P188: 3.300819345e-05 | Q188: 0.004280922166
A189: 2004 | B189: 1 | C189: 8 | D189: 19 | E189: 0.004581986964 | F189: 0.0006936767558 | G189: 0.0008370160533 | H189: 2.234448925e-06 | I189: 8.0172213e-05 | J189: 0.006195086435 | L189: 0.003365971759 | M189: 0.0004434088404 | N189: 0.0005440779765 | O189: 1.043458781e-06 | P189: 3.536592156e-05 | Q189: 0.004389867956
A190: 2004 | B190: 1 | C190: 8 | D190: 20 | E190: 0.004506991745 | F190: 0.0007201552498 | G190: 0.0008217462023 | H190: 2.234448925e-06 | I190: 8.0172213e-05 | J190: 0.006131299859 | L190: 0.003310879549 | M190: 0.0004603343006 | N190: 0.0005341522533 | O190: 1.043458781e-06 | P190: 3.536592156e-05 | Q190: 0.004341775483
A191: 2004 | B191: 1 | C191: 8 | D191: 21 | E191: 0.004232799788 | F191: 0.0008554548493 | G191: 0.000856463353 | H191: 2.234448925e-06 | I191: 8.0172213e-05 | J191: 0.006027124653 | L191: 0.003109455496 | M191: 0.0005468198835 | N191: 0.0005567191288 | O191: 1.043458781e-06 | P191: 3.536592156e-05 | Q191: 0.004249403889
A192: 2004 | B192: 1 | C192: 8 | D192: 22 | E192: 0.003903724287 | F192: 0.0009002835206 | G192: 0.000856288087 | H192: 2.234448925e-06 | I192: 8.0172213e-05 | J192: 0.005742702557 | L192: 0.002867713463 | M192: 0.000575475059 | N192: 0.0005566052023 | O192: 1.043458781e-06 | P192: 3.536592156e-05 | Q192: 0.004036203105
A193: 2004 | B193: 1 | C193: 8 | D193: 23 | E193: 0.003568176179 | F193: 0.0009071213639 | G193: 0.0008229340351 | H193: 2.234448925e-06 | I193: 8.0172213e-05 | J193: 0.00538063824 | L193: 0.002621216591 | M193: 0.0005798459134 | N193: 0.0005349243695 | O193: 1.043458781e-06 | P193: 3.536592156e-05 | Q193: 0.003772396254
A194: 2004 | B194: 1 | C194: 8 | D194: 24 | E194: 0.003301332097 | F194: 0.0009726204074 | G194: 0.0008261236637 | H194: 2.234448925e-06 | I194: 8.0172213e-05 | J194: 0.00518248283 | L194: 0.002425190358 | M194: 0.0006217139084 | N194: 0.000536997695 | O194: 1.043458781e-06 | P194: 3.536592156e-05 | Q194: 0.003620311342
A195: 2004 | B195: 1 | C195: 9 | D195: 1 | E195: 0.002626979509 | F195: 0.0007583055283 | G195: 0.0006779195151 | H195: 2.234448925e-06 | I195: 8.0172213e-05 | J195: 0.004145611214 | L195: =E195*T$5 -> 0.001929804451 | M195: =F195*U$5 -> 0.0004847205448 | N195: =G195*V$5 -> 0.0004406618924 | O195: =H195*W$5 -> 1.043458781e-06 | P195: =I195*X$5 -> 3.536592156e-05 | Q195: =SUM(L195:P195) -> 0.002891596268
A196: 2004 | B196: 1 | C196: 9 | D196: 2 | E196: 0.002588668258 | F196: 0.0007294222996 | G196: 0.0006626422765 | H196: 2.234448925e-06 | I196: 8.0172213e-05 | J196: =SUM(E196:I196) -> 0.004063139496 | L196: 0.001901660637 | M196: 0.0004662579413 | N196: 0.0004307313671 | O196: 1.043458781e-06 | P196: 3.536592156e-05 | Q196: 0.002835059326
A197: 2004 | B197: 1 | C197: 9 | D197: 3 | E197: 0.002572936735 | F197: 0.0006920526637 | G197: 0.0006396411414 | H197: 2.234448925e-06 | I197: 8.0172213e-05 | J197: 0.003987037202 | L197: 0.001890104109 | M197: 0.0004423706958 | N197: 0.0004157801472 | O197: 1.043458781e-06 | P197: 3.536592156e-05 | Q197: 0.002784664332
A198: 2004 | B198: 1 | C198: 9 | D198: 4 | E198: 0.002727172274 | F198: 0.0006699129511 | G198: 0.0006219779349 | H198: 2.234448925e-06 | I198: 8.0172213e-05 | J198: 0.004101469822 | L198: 0.002003407022 | M198: 0.0004282186513 | N198: 0.0004042986928 | O198: 1.043458781e-06 | P198: 3.536592156e-05 | Q198: 0.002872333746
A199: 2004 | B199: 1 | C199: 9 | D199: 5 | E199: 0.002957595707 | F199: 0.0005720955161 | G199: 0.0005835777399 | H199: 2.234448925e-06 | I199: 8.0172213e-05 | J199: 0.004195675625 | L199: 0.002172678295 | M199: 0.0003656922439 | N199: 0.0003793377613 | O199: 1.043458781e-06 | P199: 3.536592156e-05 | Q199: 0.00295411768
A200: 2004 | B200: 1 | C200: 9 | D200: 6 | E200: 0.003234307817 | F200: 0.0005986603334 | G200: 0.000596778046 | H200: 2.234448925e-06 | I200: 8.0172213e-05 | J200: 0.004512152859 | L200: 0.002375953677 | M200: 0.0003826728834 | N200: 0.0003879182369 | O200: 1.043458781e-06 | P200: 3.536592156e-05 | Q200: 0.003182954177
... 4297 more rows

Sheet 2006 Input to CA model
A2: Feed into OEB Cost Allocation Model (version 50) sheet "I6 Customer Data", row 27
D3: 1 | E3: 2 | F3: 3 | G3: 4 | H3: 5 | J3: 7 | K3: 8 | L3: 9 | M3: 10 | N3: 11 | O3: 12 | P3: 13 | Q3: 14 | R3: 15 | S3: 16 | T3: 17 | U3: 18 | V3: 19 | W3: 20
B4: ID | C4: Total | D4: Residential | E4: GS<50 kW | F4: GS>50 kW | G4: USL | H4: Street Lighting
A6: kWh - 30 year weather normalized amount | C6: =SUM(D6:I6) -> 27966291.06 | D6: 16265358.77 | E6: 5773900.296 | F6: 5561381.915 | G6: 19949.16 | H6: 345700.9213 | J6: 0 | K6: 0 | L6: 0 | M6: 0 | N6: 0
A9: Feed into OEB Cost Allocation Model sheet (version 50) "I8 Demand Data", row 40, 45, 50, 55, 61 and 67
D10: 1 | E10: 2 | F10: 3 | G10: 4 | H10: 5 | J10: 7 | K10: 8 | L10: 9 | M10: 10 | N10: 11 | O10: 12 | P10: 13 | Q10: 14 | R10: 15 | S10: 16 | T10: 17 | U10: 18 | V10: 19 | W10: 20
A11: Customer Classes | C11: Total | D11: Residential | E11: GS<50 kW | F11: GS>50 kW | G11: USL | H11: Street Lighting
A13: CO-INCIDENT PEAK (kW)
A15: 1 CP
A16: Total Sytem CP | B16: DCP1 | C16: =SUM(D16:I16) -> 7224.297522 | D16: 4448.227175 | E16: 1499.572445 | F16: 1274.263452 | G16: 2.234448925 | H16: 0
A18: 4 CP
A19: Total Sytem CP | B19: DCP4 | C19: =SUM(D19:I19) -> 26095.56893 | D19: 16880.40852 | E19: 4611.150973 | F19: 4354.400902 | G19: 9.091895625 | H19: 240.516639
A21: 12 CP
A22: Total Sytem CP | B22: DCP12 | C22: =SUM(D22:I22) -> 56529.40513 | D22: 35867.82869 | E22: 10094.80697 | F22: 9986.315776 | G22: 27.26541355 | H22: 553.1882697
A24: NON CO_INCIDENT PEAK (kW)
A26: 1 NCP
A27: Classification NCP from Load Data Provider | B27: DNCP1 | C27: =SUM(D27:I27) -> 7865.357433 | D27: 4990.781333 | E27: 1499.572445 | F27: 1292.442892 | G27: 2.388548851 | H27: 80.172213
A29: 4 NCP
A30: Classification NCP from Load Data Provider | B30: DNCP4 | C30: =SUM(D30:I30) -> 29224.20428 | D30: 18393.63223 | E30: 5475.393619 | F30: 5025.174244 | G30: 9.315340517 | H30: 320.688852
A32: 12 NCP
A33: Classification NCP from Load Data Provider | B33: DNCP12 | C33: =SUM(D33:I33) -> 62410.49966 | D33: 38266.70454 | E33: 11613.6354 | F33: 11540.82775 | G33: 27.26541355 | H33: 962.066556

Sheet Revised Inputs to CA model
A2: Feed into OEB Cost Allocation Model (version 50) sheet "I6 Customer Data", row 27
B4: ID | C4: Total | D4: ='Hourly load shapes by class'!E2 -> Residential | E4: ='Hourly load shapes by class'!F2 -> GS<50 kW | F4: ='Hourly load shapes by class'!G2 -> GS>50 kW | G4: ='Hourly load shapes by class'!H2 -> USL | H4: ='Hourly load shapes by class'!I2 -> Street Lighting
A6: kWh - 30 year weather normalized amount | C6: =SUM(D6:I6) -> 19416282.93 | D6: ='Hourly load shapes by class'!T4 -> 11948689.23 | E6: ='Hourly load shapes by class'!U4 -> 3690765.783 | F6: ='Hourly load shapes by class'!V4 -> 3615014.798 | G6: ='Hourly load shapes by class'!W4 -> 9316 | H6: ='Hourly load shapes by class'!X4 -> 152497.121
A9: Feed into OEB Cost Allocation Model sheet (version 50) "I8 Demand Data", row 40, 45, 50, 55, 61 and 67 | K9: 2025 Demand Data
A11: Customer Classes | C11: Total | D11: ='Hourly load shapes by class'!E2 -> Residential | E11: ='Hourly load shapes by class'!F2 -> GS<50 kW | F11: ='Hourly load shapes by class'!G2 -> GS>50 kW | G11: ='Hourly load shapes by class'!H2 -> USL | H11: ='Hourly load shapes by class'!I2 -> Street Lighting | K11: =D11 -> Residential | L11: =E11 -> GS<50 kW | M11: GS>50 kW | N11: USL | O11: Street Lighting
A13: CO-INCIDENT PEAK (kW)
A15: 1 CP
A16: Total Sytem CP | B16: DCP1 | C16: =SUM(D16:I16) -> 7224.297522 | D16: ='Hourly load shapes by class'!E8802*1000000 -> 4448.227175 | E16: ='Hourly load shapes by class'!F8802*1000000 -> 1499.572445 | F16: ='Hourly load shapes by class'!G8802*1000000 -> 1274.263452 | G16: ='Hourly load shapes by class'!H8802*1000000 -> 2.234448925 | H16: ='Hourly load shapes by class'!I8802*1000000 -> 0 | K16: ='Hourly load shapes by class'!L8815*1000000 -> 3267.71053 | L16: ='Hourly load shapes by class'!M8815*1000000 -> 958.5497474 | M16: ='Hourly load shapes by class'!N8815*1000000 -> 828.2979495 | N16: ='Hourly load shapes by class'!O8815*1000000 -> 1.043458781 | O16: ='Hourly load shapes by class'!P8815*1000000 -> 0
A18: 4 CP
A19: Total Sytem CP | B19: DCP4 | C19: =SUM(D19:I19) -> 26095.56893 | D19: =SUM('Hourly load shapes by class'!E8815:E8818)*1000000 -> 16880.40852 | E19: =SUM('Hourly load shapes by class'!F8815:F8818)*1000000 -> 4611.150973 | F19: =SUM('Hourly load shapes by class'!G8815:G8818)*1000000 -> 4354.400902 | G19: =SUM('Hourly load shapes by class'!H8815:H8818)*1000000 -> 9.091895625 | H19: =SUM('Hourly load shapes by class'!I8815:I8818)*1000000 -> 240.516639 | K19: =SUM('Hourly load shapes by class'!L8815:L8818)*1000000 -> 12400.51069 | L19: =SUM('Hourly load shapes by class'!M8815:M8818)*1000000 -> 2947.518551 | M19: =SUM('Hourly load shapes by class'!N8815:N8818)*1000000 -> 2830.451844 | N19: =SUM('Hourly load shapes by class'!O8815:O8818)*1000000 -> 4.2457978 | O19: =SUM('Hourly load shapes by class'!P8815:P8818)*1000000 -> 106.0977647
A21: 12 CP
A22: Total Sytem CP | B22: DCP12 | C22: =SUM(D22:I22) -> 56529.40513 | D22: =SUM('Hourly load shapes by class'!E8802:E8813)*1000000 -> 35867.82869 | E22: =SUM('Hourly load shapes by class'!F8802:F8813)*1000000 -> 10094.80697 | F22: =SUM('Hourly load shapes by class'!G8802:G8813)*1000000 -> 9986.315776 | G22: =SUM('Hourly load shapes by class'!H8802:H8813)*1000000 -> 27.26541355 | H22: =SUM('Hourly load shapes by class'!I8802:I8813)*1000000 -> 553.1882697 | K22: =SUM('Hourly load shapes by class'!L8802:L8813)*1000000 -> 26348.85245 | L22: =SUM('Hourly load shapes by class'!M8802:M8813)*1000000 -> 6452.755721 | M22: =SUM('Hourly load shapes by class'!N8802:N8813)*1000000 -> 6491.314544 | N22: =SUM('Hourly load shapes by class'!O8802:O8813)*1000000 -> 12.73259589 | O22: =SUM('Hourly load shapes by class'!P8802:P8813)*1000000 -> 244.0248588
A24: NON CO_INCIDENT PEAK (kW)
A26: 1 NCP
A27: Classification NCP from Load Data Provider | B27: DNCP1 | C27: =SUM(D27:I27) -> 7865.203333 | D27: ='Hourly load shapes by class'!E8788*1000000 -> 4990.781333 | E27: ='Hourly load shapes by class'!F8788*1000000 -> 1499.572445 | F27: ='Hourly load shapes by class'!G8788*1000000 -> 1292.442892 | G27: ='Hourly load shapes by class'!H8788*1000000 -> 2.234448925 | H27: ='Hourly load shapes by class'!I8788*1000000 -> 80.172213 | K27: =MAX('Hourly load shapes by class'!L8788:L8799)*1000000 -> 3666.27604 | L27: =MAX('Hourly load shapes by class'!M8788:M8799)*1000000 -> 958.5497474 | M27: =MAX('Hourly load shapes by class'!N8788:N8799)*1000000 -> 840.1149666 | N27: =MAX('Hourly load shapes by class'!O8788:O8799)*1000000 -> 1.115421456 | O27: =MAX('Hourly load shapes by class'!P8788:P8799)*1000000 -> 35.36592156
A29: 4 NCP
A30: Classification NCP from Load Data Provider | B30: DNCP4 | C30: =SUM(D30:I30) -> 29224.20428 | D30: =(LARGE('Hourly load shapes by class'!E8788:E8799,1)+LARGE('Hourly load shapes by class'!E8788:E8799,2)+LARGE('Hourly load shapes by class'!E8788:E8799,3)+LARGE('Hourly load shapes by class'!E8788:E8799,4))*1000000 -> 18393.63223 | E30: =(LARGE('Hourly load shapes by class'!F8788:F8799,1)+LARGE('Hourly load shapes by class'!F8788:F8799,2)+LARGE('Hourly load shapes by class'!F8788:F8799,3)+LARGE('Hourly load shapes by class'!F8788:F8799,4))*1000000 -> 5475.393619 | F30: =(LARGE('Hourly load shapes by class'!G8788:G8799,1)+LARGE('Hourly load shapes by class'!G8788:G8799,2)+LARGE('Hourly load shapes by class'!G8788:G8799,3)+LARGE('Hourly load shapes by class'!G8788:G8799,4))*1000000 -> 5025.174244 | G30: =(LARGE('Hourly load shapes by class'!H8788:H8799,1)+LARGE('Hourly load shapes by class'!H8788:H8799,2)+LARGE('Hourly load shapes by class'!H8788:H8799,3)+LARGE('Hourly load shapes by class'!H8788:H8799,4))*1000000 -> 9.315340517 | H30: =(LARGE('Hourly load shapes by class'!I8788:I8799,1)+LARGE('Hourly load shapes by class'!I8788:I8799,2)+LARGE('Hourly load shapes by class'!I8788:I8799,3)+LARGE('Hourly load shapes by class'!I8788:I8799,4))*1000000 -> 320.688852 | K30: =(LARGE('Hourly load shapes by class'!L8788:L8799,1)+LARGE('Hourly load shapes by class'!L8788:L8799,2)+LARGE('Hourly load shapes by class'!L8788:L8799,3)+LARGE('Hourly load shapes by class'!L8788:L8799,4))*1000000 -> 13512.13941 | L30: =(LARGE('Hourly load shapes by class'!M8788:M8799,1)+LARGE('Hourly load shapes by class'!M8788:M8799,2)+LARGE('Hourly load shapes by class'!M8788:M8799,3)+LARGE('Hourly load shapes by class'!M8788:M8799,4))*1000000 -> 3499.955729 | M30: =(LARGE('Hourly load shapes by class'!N8788:N8799,1)+LARGE('Hourly load shapes by class'!N8788:N8799,2)+LARGE('Hourly load shapes by class'!N8788:N8799,3)+LARGE('Hourly load shapes by class'!N8788:N8799,4))*1000000 -> 3266.468574 | N30: =(LARGE('Hourly load shapes by class'!O8788:O8799,1)+LARGE('Hourly load shapes by class'!O8788:O8799,2)+LARGE('Hourly load shapes by class'!O8788:O8799,3)+LARGE('Hourly load shapes by class'!O8788:O8799,4))*1000000 -> 4.350143678 | O30: =(LARGE('Hourly load shapes by class'!P8788:P8799,1)+LARGE('Hourly load shapes by class'!P8788:P8799,2)+LARGE('Hourly load shapes by class'!P8788:P8799,3)+LARGE('Hourly load shapes by class'!P8788:P8799,4))*1000000 -> 141.4636863
A32: 12 NCP
A33: Classification NCP from Load Data Provider | B33: DNCP12 | C33: =SUM(D33:I33) -> 62410.49966 | D33: =SUM('Hourly load shapes by class'!E8788:E8799)*1000000 -> 38266.70454 | E33: =SUM('Hourly load shapes by class'!F8788:F8799)*1000000 -> 11613.6354 | F33: =SUM('Hourly load shapes by class'!G8788:G8799)*1000000 -> 11540.82775 | G33: =SUM('Hourly load shapes by class'!H8788:H8799)*1000000 -> 27.26541355 | H33: =SUM('Hourly load shapes by class'!I8788:I8799)*1000000 -> 962.066556 | K33: =SUM('Hourly load shapes by class'!L8788:L8799)*1000000 -> 28111.08975 | L33: =SUM('Hourly load shapes by class'!M8788:M8799)*1000000 -> 7423.614185 | M33: =SUM('Hourly load shapes by class'!N8788:N8799)*1000000 -> 7501.779906 | N33: =SUM('Hourly load shapes by class'!O8788:O8799)*1000000 -> 12.73259589 | O33: =SUM('Hourly load shapes by class'!P8788:P8799)*1000000 -> 424.3910588
